{"text_format":"1","workbook":"xlsx","n_sheets":6,"sheets":["使い方","備忘録","データ","印刷","カレンダー","一般音声入力"],"not_rendered":{"charts":0,"images":5,"macros":1,"external_links":0,"defined_names":4,"comments":0,"pivot_tables":0},"unopened":[],"bounds":{"document_bytes":16777216,"sheet_cells":100000,"rows_first":2000,"rows_last":500,"rows_between":2000,"halvings":0,"cell_chars":16384,"cell_head_chars":4096},"cells_cut":0,"cells_raw":0,"read":"whole","date_system":"1900"}

{"sheet":"使い方","index":0,"n_rows":218,"n_cols":11,"rows_kept":218,"cut":false,"hidden":false,"merged":[[0,3,0,5]]}
[null,null,null,"備忘録の使い方"]
[]
["１・","「備忘録」ファイルの特徴"]
[]
["・","　この「備忘録」ファイルは日々の出来事をスマホ（あるいは直接パソコン）で"]
[null,"音声入力し、その音声データをこのファイルに取り込んで、編集保管する目的で"]
[null,"作成したものです。"]
[]
["・","　音声入力とその後のデータ取り込み方法については、ここでは割愛します。"]
[null,"詳しくは下記のインターネット資料を参考にして下さい。"]
[null,"　https://ametuku.com/archives/10450"]
[null,"　http://pasokatu.com/14226"]
[null,"　https://www.blog-support.com/entry/2017/06/05/220907"]
[]
["・","　Googleの音声入力は、無料のソフトとしては、当代で最も優れた機能を持って"]
[null,"いると言われています。"]
[null,"　AI（人口知能）などを活用していると思われ、前後の文脈から最もふさわしい"]
[null,"日本語を選択してくれます。"]
[null,"　一方、不都合と思われる点もあります。"]
[null,"　それは、Microsoftが持つ、「。」、「、」や「改行」の機能がないことです。"]
[null,"　そして、やはりMicrosoft が持つ「単語登録」の機能がないことです。特に名"]
[null,"前などを含む固有名詞はAIでは予測できない言葉が多く存在し、当方が希望する"]
[null,"文章にはなかなか変換してくれません。"]
["・","　この「備忘録」は、Googleの優れた音声入力機能を用いて作成した音声データ"]
[null,"に、Googleでは出来ない「。」、「、」や「改行」を自動で挿入します。"]
[null,"　さらに、音声入力で間違いやすい単語を事前登録しておいて、自動的に修正し"]
[null,"希望に近い文章を作成します。"]
[]
[]
["２・","使用方法"]
[]
["(1)","「。」、「、」の挿入"]
["・","　ここでは「。」や「、」を挿入するためにExcelが持っている「検索」と「置"]
[null,"換」という機能を使います。"]
[null,"　音声で「ピリオド」や「カンマ」と言った言葉を入力した文章を作ります。こ"]
[null,"れを「備忘録」内に取り込んで、「ピリオド」という単語を”検索”し「。」に"]
[null,"”置換”します。「カンマ」も同じです。"]
["・","　Maicrosoftの音声入力は、「。」を「丸（まる）」と発音し、「、」を「点"]
[null,"（てん）」と発音します。この備忘録も当初はこれを真似ましたが、文章に例え"]
[null,"ば「日の丸」という言葉があった場合も「日の。」と変換し、不都合が生じます。"]
[null,"　したがってここでは、比較的混乱が起きにくい「ピリオド」と「カンマ」を採"]
[null,"用することにしました。"]
[]
["・","　なお、プログラムの機能を理解したうえで、Sheet「データ」の「置換表」を"]
[null,"書き直せば、「ピリオド」や「カンマ」を各自好みの単語に置き換えることがで"]
[null,"きます。"]
[]
["(2)","改行について"]
["・","　ここでいう改行は、Excelのセル内で行う改行と異なり、改行以下の文章を1段",null,null,null,null,null,null,null,null,"　文章の中で改行したい個所に特定の文字（目印の文字）を挿入します。特定の"]
[null,"下のセルに移す形で行います。",null,null,null,null,null,null,null,null,"文字として、ここでは「改行のP」という言葉にしました。プログラムはセルの"]
["・","　これがもしWordであれば、改行を行う指定文字「^p」が決まっていて、これを",null,null,null,null,null,null,null,null,"上段からこの目印の文字を探してきて、もし、目印の文字があれば、その文字以"]
[null,"置換後の文字に指定すると改行が行われます。しかし、Excelにはその機能があ",null,null,null,null,null,null,null,null,"降を「切り取って」下のセルに「貼り付け」ます。この時、下のセルに文字がす"]
[null,"りません。",null,null,null,null,null,null,null,null,"でにあれば、それらのセル群を1段下げた上で「貼り付け」ます。"]
["・","　それではExcelでどうするか、手動で改行する手順と全く同じ方法で行います。",null,null,null,null,null,null,null,null,"　これを繰り返します。"]
["・","　作成当初は「改行のP]という単語にしていましたが、文字数が4個あるため、",null,null,null,null,null,null,null,null,"　なぜ「改行のP」などと不思議な言葉にしたのかは、理由があるのですが、少"]
[null,"たまに不都合が生じることがありました。",null,null,null,null,null,null,null,null,"し長くなるので割愛します。"]
[null,"　手はないかと考えた結果ですが、単語は「ニューライン」とし検索と置換で",null,null,null,null,null,null,null,null,"　したがって、この備忘録を使うに当たっては音声入力の時点で、改行したい個"]
[null,"「ニューライン」を「P」に置き換え、「P」1文字で改行するように改めました。",null,null,null,null,null,null,null,null,"所において「改行のP（発音はピー）」という言葉を挿入して文章を完成します。"]
[null,"　この結果で、改行精度の問題が解消されました。",null,null,null,null,null,null,null,null,"（注：鍵かっこは不要です）"]
[null,null,null,null,null,null,null,null,null,null,"　この備忘録内では、改行したうえで「改行のP」という文字を取り去ります。"]
[null,null,null,null,null,null,null,null,null,null,"結果として改行された文章が残ります。"]
[null,null,null,null,null,null,null,null,null,null,"　先に述べたように「ピリオド」や「カンマ」の用語は使用者で勝手に変更でき"]
["(3)","指定日への移動",null,null,null,null,null,null,null,null,"ますが、この「改行のP」は変えることができません。"]
["・","　この備忘録は1年を横に長く展開しています。そして、1日を約8Cmの幅（各自"]
[null,"の好みで変更は可能）に設定しています。ディスプレイの仕様にもよりますが、"]
[null,"1年の長さがおよそ3ｍになり、所定の日を探しだすには長くスクロールをかける"]
[null,"必要があります。"]
["・","　この不便を補う目的で「今日」あるいは「希望日」に一気に到達できるようプ"]
[null,"ログラムを作成しました。"]
[null,"　それぞれ専用のボタンを押せば可能です。この時「希望日」の場合は”希望の"]
[null,"日”を入力する画面が現れますので、希望日を入力すれば、OKとなります。"]
[]
["(4)","置換表の使い方"]
["・","　各自の発音の特性や、Googleの認識の特性により、よく使用する単語が正しく"]
[null,"表示されないことがあります。"]
[null,"　この誤認識が繰り返されるもで、あらかじめ判っている単語については、その"]
[null,"単語を正しく表示するための置換表を用意しました。"]
["・","　Sheet「データ」にある「置換表」に間違った単語と正しい単語を入力してく"]
[null,"ださい。"]
[null,"　これらの単語が含まれている文章では、プログラムが自動的に修正を致します。"]
[null,"　この場合、単語登録は上からセルを開けないよう詰めて入力して下さい。"]
[null,"　登録できる単語の数は無制限です。"]
[]
["(5)","行頭スペースの挿入"]
["・","　音声入力した文章をこの備忘録に貼り付けた際、文章が1個のセルに収まって"]
[null,"いれば問題ありませんが、複数のセルに入る時は問題が起きることがあります。"]
[null,"　複数セルに編集をかけた時、もし下段セルの頭に空白が無ければ、上段セルの"]
[null,"文章末尾と、下段セルの文章頭が連続した文章となってセルに入ります。"]
[null,"　上段セルの文章と下段セルの文章を分けたセルで表示したいときは、セルの行"]
[null,"頭に全角1文字のスペースをとる必要があります。"]
["・","　このスペースをとる操作は勿論手動で出来ますが、簡易にできるようなプログ"]
[null,"ラムを用意しました。"]
[null,"　スペースを置きたいセルを選んで、ボタン操作すれば可能となり、セルの行頭"]
[null,"に全角1文字のスペースが置かれます。"]
[]
["(6)","編集操作"]
["・","　この備忘録においては、音声で入力したデータを貼り付けたのちは、ただ1回"]
[null,"専用のボタンをクリックするだけで、全ての編集作業が完了します。"]
[null,"　それは「一括編集」というボタンです。"]
[null,"　実行に数秒時間を要する時もありますが、それで全て完了です。"]
[null,"　「一括編集」というボタンは使用頻度が極めて多いため、年度の冒頭にも同じ"]
[null,"ものをコピーして配置いています。"]
["・","　「置換」をせず、「文字ぞろえ」のみ行いたい場合のボタンです。"]
[]
[]
["(7)","新年度カレンダーの作成"]
["・","　新しい年度のカレンダー（備忘録）も自動で作成できます。"]
[null,"　この時、事前に2か所データを入力しておく必要があります。それはSheet「デ"]
[null,"ータ」にある「年度開始行」と「カレンダーの作成年」の2か所です。入力が必"]
[null,"要なセルはブルーになっています。"]
["・","　「年度開始行」とは、新しく作成するカレンダ―をExcelのどの行に作成する"]
[null,"かを確定するものです。作成者の希望によりどこにでも作成可能です。"]
[null,"　さらに、この値は「指定日に移動」の時のキーになる値となります。作成後も"]
[null,"常時使用することになり、削除することはできません。"]
[null,"　もし作成後カレンダーの位置をずらした場合は、ずらし先の位置に合致するよ"]
[null,"う「年度開始行」の値も変更してください。"]
["・","　「カレンダーの作成年」とはカレンダー（備忘録）の作成年度を示すもので、"]
[null,"作成後は保存する必要のない値になります。"]
["・","　これらの値を入力した後は「新カレンダー」というボタンをクリックするだけ"]
[null,"です。ボタンは「B列」に配列してあります。隠れているかもわかりません。"]
[]
["(8)","備忘録の印刷"]
["・","　印刷したい月日を範囲指定し、「印刷」ボタンを押します。"]
[]
[]
[]
[]
[]
["(9)","操作要領"]
[null,"　備忘録の冒頭部の画像です。"]
[null,"　これまでに述べた操作を実行するボタンが7ヶ並んでいます。年度冒頭にもコ"]
[null,"ピーしたものを配置しています。"]
[null,"　操作は、必要に応じてそれぞれのボタンをクリックするだけです。"]
[null,"　「新カレンダー」はB列に載っています。"]
[]
[]
[]
[]
[]
[]
[]
[]
[]
[]
[]
[]
[]
[]
[]
[]
[]
[]
[]
[]
[]
[]
[]
[]
[]
[null,"　通常の転記作業は、グーグルドキュメントの文字を全て選択してコピーし、備"]
[null,"忘録を起こして貼り付け「一括編集」ボタンをクリックするのが基本作業になり"]
[null,"ます。"]
[]
["（10）","ショートカットキーによる一連操作"]
["・","　予めの作業として、グーグルドキュメントのダウンロードデータを一時保管す"]
[null,"るフォルダを作成する。"]
[null,"　ダウンロードしたWordファイルが、安全であることの確認を避けるため、一時"]
[null,"保管フォルダを「信頼できる場所」として指定する。"]
[]
[]
[]
[]
[]
[]
[]
[]
[]
[]
[]
[]
[]
[]
[]
[]
[]
[]
[]
["・","　Ｗordマクロで「全て選択」と「コピー」のマクロを作成し、ショートカット"]
[null,"キーで「Ctrl」＋「N」に指定する。"]
[null,"　マクロの内容は次である。"]
[null,null,"　Selection.WholeStory"]
[null,null,"    Selection.Copy"]
[null,null,"    ActiveWindow.Close"]
[null,null,"    Application.Quit"]
[]
["・","　「一括編集」のボタンを、ショートカットキーで「Ctrl」＋「M」に指定する。"]
[]
[null,"　ボタンに配置したマクロは下図のオプションからショートカットキーに貼り付"]
[null,"けできる。"]
[]
[]
[]
[]
[]
[]
[]
[]
[]
[]
[]
[]
[]
[]
[]
["・","　次のショートカットキー操作をする。"]
[null,"　「Ctrl」＋「N」でWordの文をコピーし"]
[null,"　「Alt」＋「Tab」で画面をExcelに切り替え"]
[null,"　「Ctrl」＋「M」で一括編集を行う。"]

{"sheet":"備忘録","index":1,"n_rows":1009,"n_cols":367,"rows_kept":1009,"cut":false,"hidden":false,"merged":[[7,0,19,0],[22,0,34,0],[38,0,50,0],[55,0,67,0]]}
["備忘録"]
[{"$f":"TODAY()","v":"2021-07-13"}]
[]
[]
[]
[]
[]
["2018年",{"$f":"VALUE(LEFT(A8,4)&\"/1/1\")","v":"2018-01-01"},{"$f":"B8+1","v":"2018-01-02"},{"$f":"C8+1","v":"2018-01-03"},{"$f":"D8+1","v":"2018-01-04"},"2018-01-05","2018-01-06","2018-01-07","2018-01-08","2018-01-09","2018-01-10","2018-01-11","2018-01-12","2018-01-13","2018-01-14","2018-01-15","2018-01-16","2018-01-17","2018-01-18","2018-01-19","2018-01-20","2018-01-21","2018-01-22","2018-01-23","2018-01-24","2018-01-25","2018-01-26","2018-01-27","2018-01-28","2018-01-29","2018-01-30","2018-01-31","2018-02-01","2018-02-02","2018-02-03","2018-02-04","2018-02-05","2018-02-06","2018-02-07","2018-02-08","2018-02-09","2018-02-10","2018-02-11","2018-02-12","2018-02-13","2018-02-14","2018-02-15","2018-02-16","2018-02-17","2018-02-18","2018-02-19","2018-02-20","2018-02-21","2018-02-22","2018-02-23","2018-02-24","2018-02-25","2018-02-26","2018-02-27","2018-02-28",{"$f":"BH8+1","v":"2018-03-01"},"2018-03-02","2018-03-03","2018-03-04","2018-03-05","2018-03-06","2018-03-07",{"$f":"BO8+1","v":"2018-03-08"},"2018-03-09","2018-03-10","2018-03-11","2018-03-12","2018-03-13","2018-03-14","2018-03-15","2018-03-16","2018-03-17","2018-03-18","2018-03-19","2018-03-20","2018-03-21","2018-03-22","2018-03-23","2018-03-24","2018-03-25","2018-03-26","2018-03-27","2018-03-28","2018-03-29","2018-03-30","2018-03-31","2018-04-01","2018-04-02","2018-04-03","2018-04-04","2018-04-05","2018-04-06","2018-04-07","2018-04-08","2018-04-09","2018-04-10","2018-04-11","2018-04-12","2018-04-13","2018-04-14","2018-04-15","2018-04-16","2018-04-17","2018-04-18","2018-04-19","2018-04-20","2018-04-21","2018-04-22","2018-04-23","2018-04-24","2018-04-25","2018-04-26","2018-04-27","2018-04-28","2018-04-29","2018-04-30","2018-05-01","2018-05-02","2018-05-03","2018-05-04","2018-05-05","2018-05-06","2018-05-07","2018-05-08","2018-05-09","2018-05-10",{"$f":"EA8+1","v":"2018-05-11"},"2018-05-12","2018-05-13","2018-05-14","2018-05-15","2018-05-16","2018-05-17","2018-05-18","2018-05-19","2018-05-20","2018-05-21","2018-05-22","2018-05-23","2018-05-24","2018-05-25","2018-05-26","2018-05-27","2018-05-28","2018-05-29","2018-05-30","2018-05-31","2018-06-01","2018-06-02","2018-06-03","2018-06-04","2018-06-05","2018-06-06","2018-06-07","2018-06-08","2018-06-09","2018-06-10","2018-06-11","2018-06-12","2018-06-13","2018-06-14","2018-06-15","2018-06-16","2018-06-17","2018-06-18","2018-06-19","2018-06-20","2018-06-21","2018-06-22","2018-06-23","2018-06-24","2018-06-25","2018-06-26","2018-06-27","2018-06-28","2018-06-29","2018-06-30","2018-07-01","2018-07-02","2018-07-03","2018-07-04","2018-07-05","2018-07-06","2018-07-07","2018-07-08","2018-07-09","2018-07-10","2018-07-11","2018-07-12","2018-07-13",{"$f":"GM8+1","v":"2018-07-14"},"2018-07-15","2018-07-16","2018-07-17","2018-07-18","2018-07-19","2018-07-20","2018-07-21","2018-07-22","2018-07-23","2018-07-24","2018-07-25","2018-07-26","2018-07-27","2018-07-28","2018-07-29","2018-07-30","2018-07-31","2018-08-01","2018-08-02","2018-08-03","2018-08-04","2018-08-05","2018-08-06","2018-08-07","2018-08-08","2018-08-09","2018-08-10","2018-08-11","2018-08-12","2018-08-13","2018-08-14","2018-08-15","2018-08-16","2018-08-17","2018-08-18","2018-08-19","2018-08-20","2018-08-21","2018-08-22","2018-08-23","2018-08-24","2018-08-25","2018-08-26","2018-08-27","2018-08-28","2018-08-29","2018-08-30","2018-08-31","2018-09-01","2018-09-02","2018-09-03","2018-09-04","2018-09-05","2018-09-06","2018-09-07","2018-09-08","2018-09-09","2018-09-10","2018-09-11","2018-09-12","2018-09-13","2018-09-14","2018-09-15",{"$f":"IY8+1","v":"2018-09-16"},"2018-09-17","2018-09-18","2018-09-19","2018-09-20","2018-09-21","2018-09-22","2018-09-23","2018-09-24","2018-09-25","2018-09-26","2018-09-27","2018-09-28","2018-09-29","2018-09-30","2018-10-01","2018-10-02","2018-10-03","2018-10-04","2018-10-05","2018-10-06","2018-10-07","2018-10-08","2018-10-09","2018-10-10","2018-10-11","2018-10-12","2018-10-13","2018-10-14","2018-10-15","2018-10-16","2018-10-17","2018-10-18","2018-10-19","2018-10-20","2018-10-21","2018-10-22","2018-10-23","2018-10-24","2018-10-25","2018-10-26","2018-10-27","2018-10-28","2018-10-29","2018-10-30","2018-10-31","2018-11-01","2018-11-02","2018-11-03","2018-11-04","2018-11-05","2018-11-06","2018-11-07","2018-11-08","2018-11-09","2018-11-10","2018-11-11","2018-11-12","2018-11-13","2018-11-14","2018-11-15","2018-11-16","2018-11-17","2018-11-18",{"$f":"LK8+1","v":"2018-11-19"},"2018-11-20","2018-11-21","2018-11-22","2018-11-23","2018-11-24","2018-11-25","2018-11-26","2018-11-27","2018-11-28","2018-11-29","2018-11-30","2018-12-01","2018-12-02","2018-12-03","2018-12-04","2018-12-05","2018-12-06","2018-12-07","2018-12-08","2018-12-09","2018-12-10","2018-12-11","2018-12-12","2018-12-13","2018-12-14","2018-12-15","2018-12-16","2018-12-17","2018-12-18","2018-12-19","2018-12-20","2018-12-21","2018-12-22","2018-12-23","2018-12-24","2018-12-25","2018-12-26","2018-12-27","2018-12-28","2018-12-29","2018-12-30","2018-12-31"]
[null,{"$f":"TEXT(B8,\"aaaa\")","v":"月曜日"},{"$f":"TEXT(C8,\"aaaa\")","v":"火曜日"},"水曜日","木曜日","金曜日","土曜日","日曜日","月曜日","火曜日","水曜日","木曜日","金曜日","土曜日","日曜日","月曜日","火曜日","水曜日","木曜日","金曜日",null,"日曜日","月曜日",null,"水曜日","木曜日","金曜日","土曜日","日曜日","月曜日","火曜日","水曜日","木曜日","金曜日","土曜日","日曜日","月曜日","火曜日","水曜日","木曜日","金曜日","土曜日","日曜日","月曜日","火曜日","水曜日","木曜日","金曜日","土曜日","日曜日","月曜日","火曜日","水曜日","木曜日","金曜日","土曜日","日曜日","月曜日","火曜日","水曜日",{"$f":"TEXT(BI8,\"aaaa\")","v":"木曜日"},{"$f":"TEXT(BJ8,\"aaaa\")","v":"金曜日"},{"$f":"TEXT(BK8,\"aaaa\")","v":"土曜日"},{"$f":"TEXT(BL8,\"aaaa\")","v":"日曜日"},{"$f":"TEXT(BM8,\"aaaa\")","v":"月曜日"},{"$f":"TEXT(BN8,\"aaaa\")","v":"火曜日"},"水曜日","木曜日","金曜日","土曜日","日曜日","月曜日","火曜日","水曜日","木曜日","金曜日","土曜日","日曜日","月曜日","火曜日","水曜日","木曜日","金曜日","土曜日","日曜日","月曜日","火曜日","水曜日","木曜日","金曜日","土曜日","日曜日","月曜日","火曜日","水曜日","木曜日","金曜日","土曜日","日曜日","月曜日","火曜日","水曜日","木曜日","金曜日","土曜日","日曜日","月曜日","火曜日","水曜日","木曜日","金曜日","土曜日","日曜日","月曜日","火曜日","水曜日","木曜日","金曜日","土曜日","日曜日","月曜日","火曜日","水曜日","木曜日","金曜日","土曜日","日曜日","月曜日","火曜日",{"$f":"TEXT(DZ8,\"aaaa\")","v":"水曜日"},"木曜日","金曜日","土曜日","日曜日","月曜日","火曜日","水曜日","木曜日","金曜日","土曜日","日曜日","月曜日","火曜日","水曜日","木曜日","金曜日","土曜日","日曜日","月曜日","火曜日","水曜日","木曜日","金曜日","土曜日","日曜日","月曜日","火曜日","水曜日","木曜日","金曜日","土曜日","日曜日","月曜日","火曜日","水曜日","木曜日","金曜日","土曜日","日曜日","月曜日","火曜日","水曜日","木曜日","金曜日","土曜日","日曜日","月曜日","火曜日","水曜日","木曜日","金曜日","土曜日","日曜日","月曜日","火曜日","水曜日","木曜日","金曜日","土曜日","日曜日","月曜日","火曜日","水曜日",{"$f":"TEXT(GL8,\"aaaa\")","v":"木曜日"},"金曜日","土曜日","日曜日","月曜日","火曜日","水曜日","木曜日","金曜日","土曜日","日曜日","月曜日","火曜日","水曜日","木曜日","金曜日","土曜日","日曜日","月曜日","火曜日","水曜日","木曜日","金曜日","土曜日","日曜日","月曜日","火曜日","水曜日","木曜日","金曜日","土曜日","日曜日","月曜日","火曜日","水曜日","木曜日","金曜日","土曜日","日曜日","月曜日","火曜日","水曜日","木曜日","金曜日","土曜日","日曜日","月曜日","火曜日","水曜日","木曜日","金曜日","土曜日","日曜日","月曜日","火曜日","水曜日","木曜日","金曜日","土曜日","日曜日","月曜日","火曜日","水曜日","木曜日",{"$f":"TEXT(IX8,\"aaaa\")","v":"金曜日"},"土曜日","日曜日","月曜日","火曜日","水曜日","木曜日","金曜日","土曜日","日曜日","月曜日","火曜日","水曜日","木曜日","金曜日","土曜日","日曜日","月曜日","火曜日",null,"木曜日","金曜日","土曜日","日曜日","月曜日","火曜日","水曜日","木曜日","金曜日","土曜日","日曜日","月曜日","火曜日","水曜日","木曜日","金曜日","土曜日","日曜日","月曜日","火曜日","水曜日","木曜日","金曜日","土曜日","日曜日","月曜日","火曜日","水曜日","木曜日","金曜日","土曜日","日曜日","月曜日","火曜日","水曜日","木曜日","金曜日","土曜日","日曜日","月曜日","火曜日","水曜日","木曜日","金曜日",{"$f":"TEXT(LJ8,\"aaaa\")","v":"土曜日"},"日曜日","月曜日","火曜日","水曜日","木曜日","金曜日","土曜日","日曜日","月曜日","火曜日","水曜日","木曜日","金曜日","土曜日","日曜日","月曜日","火曜日","水曜日","木曜日","金曜日","土曜日","日曜日","月曜日","火曜日","水曜日","木曜日","金曜日",null,"日曜日","月曜日","火曜日","水曜日","木曜日","金曜日","土曜日","日曜日","月曜日","火曜日","水曜日","木曜日","金曜日","土曜日","日曜日","月曜日"]
[]
[]
[]
[]
[]
[]
[]
[]
[]
[]
[]
[]
[]
["2019年",{"$f":"VALUE(LEFT(A23,4)&\"/1/1\")","v":"2019-01-01"},{"$f":"B23+1","v":"2019-01-02"},{"$f":"C23+1","v":"2019-01-03"},{"$f":"D23+1","v":"2019-01-04"},"2019-01-05","2019-01-06","2019-01-07","2019-01-08","2019-01-09","2019-01-10","2019-01-11","2019-01-12","2019-01-13","2019-01-14","2019-01-15","2019-01-16","2019-01-17","2019-01-18","2019-01-19","2019-01-20","2019-01-21","2019-01-22","2019-01-23","2019-01-24","2019-01-25","2019-01-26","2019-01-27","2019-01-28","2019-01-29","2019-01-30","2019-01-31","2019-02-01","2019-02-02","2019-02-03","2019-02-04","2019-02-05","2019-02-06","2019-02-07","2019-02-08","2019-02-09","2019-02-10","2019-02-11","2019-02-12","2019-02-13","2019-02-14","2019-02-15","2019-02-16","2019-02-17","2019-02-18","2019-02-19","2019-02-20","2019-02-21","2019-02-22","2019-02-23","2019-02-24","2019-02-25","2019-02-26","2019-02-27","2019-02-28",{"$f":"BH23+1","v":"2019-03-01"},"2019-03-02","2019-03-03","2019-03-04","2019-03-05","2019-03-06","2019-03-07","2019-03-08",{"$f":"BP23+1","v":"2019-03-09"},"2019-03-10","2019-03-11","2019-03-12","2019-03-13","2019-03-14","2019-03-15","2019-03-16","2019-03-17","2019-03-18","2019-03-19","2019-03-20","2019-03-21","2019-03-22","2019-03-23","2019-03-24","2019-03-25","2019-03-26","2019-03-27","2019-03-28","2019-03-29","2019-03-30","2019-03-31","2019-04-01","2019-04-02","2019-04-03","2019-04-04","2019-04-05","2019-04-06","2019-04-07","2019-04-08","2019-04-09","2019-04-10","2019-04-11","2019-04-12","2019-04-13","2019-04-14","2019-04-15","2019-04-16","2019-04-17","2019-04-18","2019-04-19","2019-04-20","2019-04-21","2019-04-22","2019-04-23","2019-04-24","2019-04-25","2019-04-26","2019-04-27","2019-04-28","2019-04-29","2019-04-30","2019-05-01","2019-05-02","2019-05-03","2019-05-04","2019-05-05","2019-05-06","2019-05-07","2019-05-08","2019-05-09","2019-05-10","2019-05-11",{"$f":"EB23+1","v":"2019-05-12"},"2019-05-13","2019-05-14","2019-05-15","2019-05-16","2019-05-17","2019-05-18","2019-05-19","2019-05-20","2019-05-21","2019-05-22","2019-05-23","2019-05-24","2019-05-25","2019-05-26","2019-05-27","2019-05-28","2019-05-29","2019-05-30","2019-05-31","2019-06-01","2019-06-02","2019-06-03","2019-06-04","2019-06-05","2019-06-06","2019-06-07","2019-06-08","2019-06-09","2019-06-10","2019-06-11","2019-06-12","2019-06-13","2019-06-14","2019-06-15","2019-06-16","2019-06-17","2019-06-18","2019-06-19","2019-06-20","2019-06-21","2019-06-22","2019-06-23",{"$f":"FS23+1","v":"2019-06-24"},"2019-06-25","2019-06-26","2019-06-27","2019-06-28","2019-06-29","2019-06-30","2019-07-01","2019-07-02","2019-07-03","2019-07-04","2019-07-05","2019-07-06","2019-07-07","2019-07-08","2019-07-09","2019-07-10","2019-07-11","2019-07-12","2019-07-13","2019-07-14",{"$f":"GN23+1","v":"2019-07-15"},"2019-07-16","2019-07-17","2019-07-18","2019-07-19","2019-07-20","2019-07-21","2019-07-22","2019-07-23","2019-07-24","2019-07-25","2019-07-26","2019-07-27",{"$f":"HA23+1","v":"2019-07-28"},"2019-07-29","2019-07-30","2019-07-31","2019-08-01","2019-08-02","2019-08-03","2019-08-04","2019-08-05","2019-08-06","2019-08-07","2019-08-08","2019-08-09","2019-08-10","2019-08-11","2019-08-12","2019-08-13","2019-08-14","2019-08-15","2019-08-16","2019-08-17","2019-08-18","2019-08-19","2019-08-20","2019-08-21","2019-08-22","2019-08-23","2019-08-24","2019-08-25","2019-08-26","2019-08-27","2019-08-28","2019-08-29","2019-08-30","2019-08-31","2019-09-01","2019-09-02","2019-09-03","2019-09-04","2019-09-05","2019-09-06","2019-09-07","2019-09-08","2019-09-09","2019-09-10","2019-09-11","2019-09-12","2019-09-13","2019-09-14","2019-09-15","2019-09-16",{"$f":"IZ23+1","v":"2019-09-17"},"2019-09-18","2019-09-19","2019-09-20","2019-09-21","2019-09-22","2019-09-23","2019-09-24","2019-09-25","2019-09-26","2019-09-27","2019-09-28","2019-09-29","2019-09-30","2019-10-01","2019-10-02","2019-10-03","2019-10-04","2019-10-05","2019-10-06","2019-10-07","2019-10-08","2019-10-09","2019-10-10","2019-10-11","2019-10-12","2019-10-13","2019-10-14","2019-10-15","2019-10-16","2019-10-17","2019-10-18","2019-10-19","2019-10-20","2019-10-21","2019-10-22","2019-10-23","2019-10-24","2019-10-25","2019-10-26","2019-10-27","2019-10-28","2019-10-29","2019-10-30","2019-10-31","2019-11-01","2019-11-02","2019-11-03","2019-11-04","2019-11-05","2019-11-06","2019-11-07","2019-11-08","2019-11-09","2019-11-10","2019-11-11","2019-11-12","2019-11-13","2019-11-14","2019-11-15","2019-11-16","2019-11-17","2019-11-18","2019-11-19",{"$f":"LL23+1","v":"2019-11-20"},"2019-11-21","2019-11-22","2019-11-23","2019-11-24","2019-11-25","2019-11-26","2019-11-27","2019-11-28","2019-11-29","2019-11-30","2019-12-01","2019-12-02","2019-12-03","2019-12-04","2019-12-05","2019-12-06","2019-12-07","2019-12-08","2019-12-09","2019-12-10","2019-12-11","2019-12-12","2019-12-13","2019-12-14","2019-12-15","2019-12-16","2019-12-17","2019-12-18","2019-12-19","2019-12-20","2019-12-21","2019-12-22","2019-12-23","2019-12-24","2019-12-25","2019-12-26","2019-12-27","2019-12-28","2019-12-29","2019-12-30","2019-12-31"]
[null,{"$f":"TEXT(B23,\"aaaa\")","v":"火曜日"},{"$f":"TEXT(C23,\"aaaa\")","v":"水曜日"},"木曜日","金曜日","土曜日","日曜日","月曜日","火曜日","水曜日","木曜日","金曜日","土曜日","日曜日","月曜日","火曜日","水曜日","木曜日","金曜日","土曜日","日曜日","月曜日","火曜日","水曜日","木曜日","金曜日","土曜日","日曜日","月曜日","火曜日","水曜日","木曜日","金曜日","土曜日","日曜日","月曜日","火曜日","水曜日","木曜日","金曜日","土曜日","日曜日","月曜日","火曜日","水曜日","木曜日","金曜日","土曜日","日曜日","月曜日","火曜日","水曜日","木曜日","金曜日","土曜日","日曜日","月曜日","火曜日","水曜日","木曜日","金曜日","土曜日","日曜日","月曜日","火曜日","水曜日",{"$f":"TEXT(BO23,\"aaaa\")","v":"木曜日"},"金曜日","土曜日","日曜日","月曜日","火曜日","水曜日","木曜日","金曜日","土曜日","日曜日","月曜日","火曜日","水曜日","木曜日","金曜日","土曜日","日曜日","月曜日","火曜日","水曜日",{"$f":"TEXT(CJ23,\"aaaa\")","v":"木曜日"},"金曜日","土曜日","日曜日","月曜日","火曜日","水曜日","木曜日","金曜日","土曜日","日曜日","月曜日","火曜日","水曜日","木曜日",{"$f":"TEXT(CY23,\"aaaa\")","v":"金曜日"},"土曜日","日曜日","月曜日","火曜日","水曜日","木曜日","金曜日","土曜日","日曜日","月曜日","火曜日","水曜日","木曜日","金曜日","土曜日","日曜日","月曜日","火曜日","水曜日","木曜日","金曜日","土曜日","日曜日","月曜日","火曜日","水曜日","木曜日",{"$f":"TEXT(EA23,\"aaaa\")","v":"金曜日"},"土曜日","日曜日","月曜日","火曜日","水曜日","木曜日","金曜日","土曜日","日曜日","月曜日","火曜日","水曜日","木曜日","金曜日","土曜日","日曜日","月曜日","火曜日","水曜日","木曜日","金曜日","土曜日","日曜日","月曜日","火曜日","水曜日","木曜日","金曜日","土曜日","日曜日","月曜日","火曜日","水曜日","木曜日","金曜日","土曜日","日曜日","月曜日","火曜日","水曜日","木曜日","金曜日","土曜日","日曜日","月曜日","火曜日","水曜日","木曜日","金曜日","土曜日","日曜日","月曜日","火曜日","水曜日","木曜日","金曜日","土曜日","日曜日","月曜日","火曜日","水曜日","木曜日","金曜日",{"$f":"TEXT(GM23,\"aaaa\")","v":"土曜日"},"日曜日","月曜日","火曜日","水曜日","木曜日","金曜日","土曜日","日曜日","月曜日","火曜日","水曜日","木曜日","金曜日","土曜日","日曜日","月曜日","火曜日","水曜日","木曜日","金曜日","土曜日","日曜日","月曜日","火曜日","水曜日","木曜日","金曜日","土曜日","日曜日","月曜日","火曜日","水曜日","木曜日","金曜日","土曜日","日曜日","月曜日","火曜日","水曜日","木曜日","金曜日","土曜日","日曜日","月曜日","火曜日","水曜日","木曜日","金曜日","土曜日","日曜日","月曜日","火曜日","水曜日","木曜日","金曜日","土曜日","日曜日","月曜日","火曜日","水曜日曇り時々晴れ、夕方1時雨。右手の親指","木曜日","金曜日","土曜日",{"$f":"TEXT(IY23,\"aaaa\")","v":"日曜日"},"月曜日","火曜日","水曜日","木曜日","金曜日","土曜日","日曜日","月曜日","火曜日","水曜日","木曜日","金曜日","土曜日","日曜日","月曜日","火曜日","水曜日","木曜日","金曜日","土曜日","日曜日","月曜日","火曜日","水曜日","木曜日","金曜日","土曜日","日曜日","月曜日","火曜日","水曜日","木曜日","金曜日","土曜日","日曜日","月曜日","火曜日","水曜日","木曜日","金曜日","土曜日","日曜日","月曜日","火曜日","水曜日","木曜日","金曜日","土曜日","日曜日","月曜日","火曜日","水曜日","木曜日","金曜日","土曜日","日曜日","月曜日","火曜日","水曜日","木曜日","金曜日","土曜日","日曜日",{"$f":"TEXT(LK23,\"aaaa\")","v":"月曜日"},"火曜日","水曜日","木曜日","金曜日","土曜日","日曜日","月曜日","火曜日","水曜日","木曜日","金曜日","土曜日","日曜日","月曜日","火曜日","水曜日","木曜日","金曜日","土曜日","日曜日","月曜日","火曜日","水曜日","木曜日","金曜日","土曜日","日曜日","月曜日","火曜日","水曜日","木曜日","金曜日","土曜日","日曜日","月曜日","火曜日","水曜日","木曜日","金曜日","土曜日","日曜日","月曜日","火曜日"]
[]
[]
[]
[]
[]
[]
[]
[]
[]
[]
[]
[]
[null,null,null,null,null,null,null,null,null,null,null,null,null,null,null,null,null,null,null,null,null,null,null,null,null,null,null,null,null,null,null,null,null,null,null,null,null,null,null,null,null,null,null,null,null,null,null,null,null,null,null,null,null,null,null,null,null,null,null,null,null,null,null,null,null,null,null,null,null,null,null,null,null,null,null,null,null,null,null,null,null,null,null,null,null,null,null,null,null,null,null,null,null,null,null,null,null,null,null,null,null,null,null,null,null,null,null,null,null,null,null,null,null,null,null,null,null,null,null,null,null,null,null,null,null,null,null,null,null,null,null,null,null,null,null,null,null,null,null,null,null,null,null,null,null,null,null,null,null,null,null,null,null,null,null,null,null,null,null,null,"本新記録を出す。敬一郎が立ち会っている。"]
[]
["2020年",{"$f":"VALUE(LEFT(A39,4)&\"/1/1\")","v":"2020-01-01"},{"$f":"B39+1","v":"2020-01-02"},{"$f":"C39+1","v":"2020-01-03"},{"$f":"D39+1","v":"2020-01-04"},"2020-01-05","2020-01-06","2020-01-07","2020-01-08","2020-01-09","2020-01-10","2020-01-11","2020-01-12","2020-01-13","2020-01-14","2020-01-15","2020-01-16","2020-01-17","2020-01-18","2020-01-19","2020-01-20","2020-01-21","2020-01-22","2020-01-23","2020-01-24","2020-01-25","2020-01-26","2020-01-27","2020-01-28","2020-01-29",{"$f":"AD39+1","v":"2020-01-30"},"2020-01-31","2020-02-01","2020-02-02","2020-02-03","2020-02-04","2020-02-05","2020-02-06","2020-02-07","2020-02-08","2020-02-09","2020-02-10","2020-02-11","2020-02-12","2020-02-13","2020-02-14","2020-02-15","2020-02-16","2020-02-17","2020-02-18","2020-02-19","2020-02-20","2020-02-21","2020-02-22","2020-02-23","2020-02-24","2020-02-25","2020-02-26","2020-02-27","2020-02-28",{"$f":"BH39+1","v":"2020-02-29"},"2020-03-01","2020-03-02","2020-03-03","2020-03-04","2020-03-05","2020-03-06","2020-03-07",{"$f":"BP39+1","v":"2020-03-08"},"2020-03-09","2020-03-10","2020-03-11","2020-03-12","2020-03-13","2020-03-14","2020-03-15","2020-03-16","2020-03-17","2020-03-18","2020-03-19","2020-03-20","2020-03-21","2020-03-22","2020-03-23","2020-03-24","2020-03-25","2020-03-26","2020-03-27","2020-03-28","2020-03-29","2020-03-30","2020-03-31","2020-04-01","2020-04-02","2020-04-03","2020-04-04","2020-04-05","2020-04-06","2020-04-07","2020-04-08","2020-04-09","2020-04-10","2020-04-11","2020-04-12","2020-04-13","2020-04-14","2020-04-15","2020-04-16","2020-04-17","2020-04-18","2020-04-19","2020-04-20","2020-04-21","2020-04-22","2020-04-23","2020-04-24","2020-04-25","2020-04-26","2020-04-27","2020-04-28","2020-04-29","2020-04-30","2020-05-01","2020-05-02","2020-05-03","2020-05-04","2020-05-05","2020-05-06","2020-05-07","2020-05-08","2020-05-09","2020-05-10",{"$f":"EB39+1","v":"2020-05-11"},"2020-05-12","2020-05-13","2020-05-14","2020-05-15","2020-05-16","2020-05-17","2020-05-18","2020-05-19","2020-05-20","2020-05-21","2020-05-22","2020-05-23","2020-05-24","2020-05-25","2020-05-26","2020-05-27","2020-05-28","2020-05-29","2020-05-30","2020-05-31","2020-06-01","2020-06-02","2020-06-03","2020-06-04","2020-06-05","2020-06-06","2020-06-07","2020-06-08","2020-06-09","2020-06-10","2020-06-11","2020-06-12","2020-06-13","2020-06-14","2020-06-15","2020-06-16","2020-06-17","2020-06-18","2020-06-19","2020-06-20","2020-06-21","2020-06-22","2020-06-23","2020-06-24","2020-06-25","2020-06-26","2020-06-27","2020-06-28","2020-06-29","2020-06-30","2020-07-01","2020-07-02","2020-07-03","2020-07-04","2020-07-05","2020-07-06","2020-07-07","2020-07-08","2020-07-09","2020-07-10","2020-07-11","2020-07-12","2020-07-13",{"$f":"GN39+1","v":"2020-07-14"},"2020-07-15","2020-07-16","2020-07-17","2020-07-18","2020-07-19","2020-07-20","2020-07-21","2020-07-22","2020-07-23","2020-07-24","2020-07-25","2020-07-26","2020-07-27","2020-07-28","2020-07-29","2020-07-30","2020-07-31","2020-08-01","2020-08-02","2020-08-03","2020-08-04","2020-08-05","2020-08-06","2020-08-07","2020-08-08","2020-08-09","2020-08-10","2020-08-11","2020-08-12","2020-08-13","2020-08-14","2020-08-15","2020-08-16","2020-08-17","2020-08-18","2020-08-19","2020-08-20","2020-08-21","2020-08-22","2020-08-23","2020-08-24","2020-08-25","2020-08-26","2020-08-27","2020-08-28","2020-08-29","2020-08-30","2020-08-31","2020-09-01","2020-09-02","2020-09-03","2020-09-04","2020-09-05","2020-09-06","2020-09-07","2020-09-08","2020-09-09","2020-09-10","2020-09-11","2020-09-12","2020-09-13","2020-09-14","2020-09-15",{"$f":"IZ39+1","v":"2020-09-16"},"2020-09-17","2020-09-18","2020-09-19","2020-09-20","2020-09-21","2020-09-22","2020-09-23","2020-09-24","2020-09-25","2020-09-26","2020-09-27","2020-09-28","2020-09-29","2020-09-30","2020-10-01","2020-10-02","2020-10-03","2020-10-04","2020-10-05","2020-10-06","2020-10-07","2020-10-08","2020-10-09","2020-10-10","2020-10-11","2020-10-12","2020-10-13","2020-10-14","2020-10-15","2020-10-16","2020-10-17","2020-10-18","2020-10-19","2020-10-20","2020-10-21","2020-10-22","2020-10-23","2020-10-24","2020-10-25","2020-10-26","2020-10-27","2020-10-28","2020-10-29","2020-10-30","2020-10-31","2020-11-01","2020-11-02","2020-11-03","2020-11-04","2020-11-05","2020-11-06","2020-11-07","2020-11-08","2020-11-09",{"$f":"LC39+1","v":"2020-11-10"},{"$f":"LD39+1","v":"2020-11-11"},{"$f":"LE39+1","v":"2020-11-12"},{"$f":"LF39+1","v":"2020-11-13"},{"$f":"LG39+1","v":"2020-11-14"},"2020-11-15","2020-11-16","2020-11-17","2020-11-18",{"$f":"LL39+1","v":"2020-11-19"},"2020-11-20","2020-11-21","2020-11-22","2020-11-23","2020-11-24","2020-11-25","2020-11-26","2020-11-27","2020-11-28","2020-11-29","2020-11-30","2020-12-01","2020-12-02","2020-12-03","2020-12-04","2020-12-05","2020-12-06","2020-12-07","2020-12-08","2020-12-09","2020-12-10","2020-12-11","2020-12-12","2020-12-13","2020-12-14","2020-12-15","2020-12-16","2020-12-17","2020-12-18","2020-12-19","2020-12-20","2020-12-21","2020-12-22","2020-12-23","2020-12-24","2020-12-25","2020-12-26","2020-12-27","2020-12-28","2020-12-29","2020-12-30","2020-12-31"]
[null,{"$f":"TEXT(B39,\"aaaa\")","v":"水曜日"},{"$f":"TEXT(C39,\"aaaa\")","v":"木曜日"},"金曜日","土曜日","日曜日","月曜日","火曜日","水曜日","木曜日","金曜日","土曜日","日曜日","月曜日","火曜日","水曜日","木曜日","金曜日","土曜日","日曜日","月曜日","火曜日","水曜日","木曜日","金曜日","土曜日","日曜日","月曜日","火曜日","水曜日","木曜日","金曜日","土曜日","日曜日","月曜日","火曜日","水曜日","木曜日","金曜日","土曜日","日曜日","月曜日","火曜日","水曜日","木曜日","金曜日","土曜日","日曜日","月曜日","火曜日","水曜日","木曜日","金曜日","土曜日","日曜日","月曜日","火曜日","水曜日","木曜日","金曜日","土曜日","日曜日","月曜日","火曜日","水曜日","木曜日",{"$f":"TEXT(BO39,\"aaaa\")","v":"金曜日"},"土曜日","日曜日","月曜日","火曜日","水曜日","木曜日","金曜日","土曜日","日曜日","月曜日","火曜日","水曜日","木曜日","金曜日","土曜日","日曜日","月曜日","火曜日","水曜日","木曜日","金曜日","土曜日","日曜日","月曜日","火曜日","水曜日","木曜日","金曜日","土曜日","日曜日","月曜日","火曜日","水曜日","木曜日","金曜日","土曜日","日曜日","月曜日","火曜日","水曜日","木曜日","金曜日","土曜日","日曜日","月曜日","火曜日","水曜日","木曜日","金曜日","土曜日","日曜日","月曜日","火曜日","水曜日","木曜日","金曜日","土曜日","日曜日","月曜日","火曜日","水曜日","木曜日","金曜日",{"$f":"TEXT(EA39,\"aaaa\")","v":"土曜日"},"日曜日","月曜日","火曜日","水曜日","木曜日","金曜日","土曜日","日曜日","月曜日","火曜日","水曜日","木曜日","金曜日","土曜日","日曜日","月曜日","火曜日","水曜日","木曜日","金曜日","土曜日","日曜日","月曜日","火曜日","水曜日","木曜日","金曜日","土曜日","日曜日","月曜日","火曜日","水曜日","木曜日","金曜日","土曜日","日曜日","月曜日","火曜日","水曜日","木曜日","金曜日","土曜日","日曜日","月曜日","火曜日","水曜日","木曜日","金曜日","土曜日","日曜日","月曜日","火曜日","水曜日","木曜日","金曜日","土曜日","日曜日","月曜日","火曜日","水曜日","木曜日","金曜日","土曜日",{"$f":"TEXT(GM39,\"aaaa\")","v":"日曜日"},"月曜日","火曜日","水曜日","木曜日","金曜日","土曜日","日曜日","月曜日","火曜日","水曜日","木曜日","金曜日","土曜日","日曜日","月曜日","火曜日","水曜日","木曜日","金曜日","土曜日","日曜日","月曜日","火曜日","水曜日","木曜日","金曜日","土曜日","日曜日","月曜日","火曜日","水曜日","木曜日","金曜日","土曜日","日曜日","月曜日","火曜日","水曜日","木曜日","金曜日","土曜日","日曜日","月曜日","火曜日","水曜日","木曜日","金曜日","土曜日","日曜日","月曜日","火曜日","水曜日","木曜日","金曜日","土曜日","日曜日","月曜日","火曜日","水曜日","木曜日","金曜日","土曜日","日曜日",{"$f":"TEXT(IY39,\"aaaa\")","v":"月曜日"},"火曜日","水曜日","木曜日","金曜日","土曜日","日曜日","月曜日","火曜日","水曜日","木曜日","金曜日","土曜日","日曜日","月曜日","火曜日","水曜日","木曜日","金曜日","土曜日","日曜日","月曜日","火曜日","水曜日","木曜日","金曜日","土曜日","日曜日","月曜日","火曜日","水曜日","木曜日","金曜日","土曜日","日曜日","月曜日","火曜日","水曜日","木曜日","金曜日","土曜日","日曜日","月曜日","火曜日","水曜日","木曜日","金曜日","土曜日","日曜日","月曜日","火曜日","水曜日","木曜日","金曜日","土曜日","日曜日","月曜日",{"$f":"TEXT(LD39,\"aaaa\")","v":"火曜日"},"水曜日","木曜日","金曜日","土曜日","日曜日","月曜日",{"$f":"TEXT(LK39,\"aaaa\")","v":"火曜日"},"水曜日","木曜日","金曜日","土曜日","日曜日","月曜日","火曜日","水曜日","木曜日","金曜日","土曜日","日曜日","月曜日","火曜日","水曜日","木曜日","金曜日","土曜日","日曜日","月曜日","火曜日","水曜日","木曜日","金曜日","土曜日","日曜日","月曜日","火曜日","水曜日","木曜日","金曜日","土曜日","日曜日","月曜日","火曜日","水曜日","木曜日","金曜日","土曜日","日曜日","月曜日","火曜日","水曜日","木曜日"]
[]
[]
[]
[]
[]
[]
[]
[]
[]
[]
[]
[]
[null,null,null,null,null,null,null,null,null,null,null,null,null,null,null,null,null,null,null,null,null,null,null,null,null,null,null,null,null,null,null,null,null,null,null,null,null,null,null,null,null,null,null,null,null,null,null,null,null,null,null,null,null,null,null,null,null,null,null,null,null,null,null,null,null,null,null,null,null,null,null,null,null,null,null,null,null,null,null,null,null,null,null,null,null,null,null,null,null,null,null,null,null,null,null,null,null,null,null,null,null,null,null,null,null,null,null,null,null,null,null,null,null,null,null,null,null,null,null,null,null,null,null,null,null,null,null,null,null,null,null,null,null,null,null,null,null,null,null,null,null,null,null,null,null,null,null,null,null,null,"下がっていた。","いたのが18時過ぎ。",null,null,null,null,null,null,null,null,null,null,null,null,null,null,null,null,null,null,null,null,null,null,null,null,null,null,null,null,null,null,null,null,null,null,null,null,null,null,null,null,null,null,null,null,null,null,null,null,null,null,null,null,null,null,null,null,null,null,null,null,null,null,null,null,null,null,null,null,null,null,null,null,null,null,null,null,null,null,null,null,null,null,null,null,null,null,null,null,null,null,null,null,null,null,null,null,null,null,null,null,null,null,null,null,null,null,null,null,null,null,null,null,null,null,null,null,null,null,null,null,null,null,null,null,null,null,null,null,null,null,null,null,null,null,null,null,null,null,null,null,null,null,null,null,null,null,null,null,null,"らしい。この中の影響で香典とみつおさんに預",null,null,null,null,null,null,null,null,null,null,null,null,null,null,null,null,null,null,null,null,null,null,null,null,null,null,null,null,null,null,null,null,null,null,null,null,null,null,null,null,null,null,null,null,null,null,null,null,null,null,null,"あえず動くのかもしれない。"]
[null,null,null,null,null,null,null,null,null,null,null,null,null,null,null,null,null,null,null,null,null,null,null,null,null,null,null,null,null,null,null,null,null,null,null,null,null,null,null,null,null,null,null,null,null,null,null,null,null,null,null,null,null,null,null,null,null,null,null,null,null,null,null,null,null,null,null,null,null,null,null,null,null,null,null,null,null,null,null,null,null,null,null,null,null,null,null,null,null,null,null,null,null,null,null,null,null,null,null,null,null,null,null,null,null,null,null,null,null,null,null,null,null,null,null,null,null,null,null,null,null,null,null,null,null,null,null,null,null,null,null,null,null,null,null,null,null,null,null,null,null,null,null,null,null,null,null,null,null,null,null,null,null,null,null,null,null,null,null,null,null,null,null,null,null,null,null,null,null,null,null,null,null,null,null,null,null,null,null,null,null,null,null,null,null,null,null,null,null,null,null,null,null,null,null,null,null,null,null,null,null,null,null,null,null,null,null,null,null,null,null,null,null,null,null,null,null,null,null,null,null,null,null,null,null,null,null,null,null,null,null,null,null,null,null,null,null,null,null,null,null,null,null,null,null,null,null,null,null,null,null,null,null,null,null,null,null,null,null,null,null,null,null,null,null,null,null,null,null,null,null,null,null,null,null,null,null,null,null,null,null,null,null,null,null,null,null,null,null,null,null,null,null,null,null,null,null,null,null,null,null,"ける処置をした。"]
[]
["2021年",{"$f":"VALUE(LEFT(A56,4)&\"/1/1\")","v":"2021-01-01"},{"$f":"B56+1","v":"2021-01-02"},"2021-01-03","2021-01-04","2021-01-05","2021-01-06","2021-01-07","2021-01-08","2021-01-09","2021-01-10","2021-01-11","2021-01-12","2021-01-13","2021-01-14","2021-01-15","2021-01-16","2021-01-17","2021-01-18","2021-01-19","2021-01-20","2021-01-21",{"$f":"V56+1","v":"2021-01-22"},"2021-01-23","2021-01-24","2021-01-25","2021-01-26","2021-01-27","2021-01-28","2021-01-29","2021-01-30","2021-01-31","2021-02-01","2021-02-02","2021-02-03","2021-02-04","2021-02-05","2021-02-06","2021-02-07","2021-02-08","2021-02-09","2021-02-10","2021-02-11","2021-02-12","2021-02-13","2021-02-14","2021-02-15","2021-02-16","2021-02-17","2021-02-18","2021-02-19","2021-02-20","2021-02-21","2021-02-22","2021-02-23","2021-02-24","2021-02-25","2021-02-26","2021-02-27","2021-02-28","2021-03-01","2021-03-02","2021-03-03","2021-03-04","2021-03-05","2021-03-06","2021-03-07","2021-03-08","2021-03-09","2021-03-10","2021-03-11","2021-03-12","2021-03-13","2021-03-14","2021-03-15","2021-03-16","2021-03-17","2021-03-18","2021-03-19","2021-03-20","2021-03-21","2021-03-22","2021-03-23","2021-03-24","2021-03-25","2021-03-26",{"$f":"CH56+1","v":"2021-03-27"},"2021-03-28","2021-03-29","2021-03-30","2021-03-31","2021-04-01","2021-04-02","2021-04-03","2021-04-04","2021-04-05","2021-04-06","2021-04-07","2021-04-08","2021-04-09","2021-04-10","2021-04-11","2021-04-12","2021-04-13","2021-04-14","2021-04-15","2021-04-16","2021-04-17","2021-04-18","2021-04-19","2021-04-20","2021-04-21","2021-04-22","2021-04-23","2021-04-24","2021-04-25","2021-04-26","2021-04-27","2021-04-28","2021-04-29","2021-04-30","2021-05-01","2021-05-02","2021-05-03","2021-05-04","2021-05-05","2021-05-06","2021-05-07","2021-05-08","2021-05-09","2021-05-10","2021-05-11","2021-05-12","2021-05-13","2021-05-14","2021-05-15","2021-05-16","2021-05-17","2021-05-18","2021-05-19","2021-05-20","2021-05-21","2021-05-22","2021-05-23","2021-05-24","2021-05-25","2021-05-26","2021-05-27","2021-05-28","2021-05-29",{"$f":"ET56+1","v":"2021-05-30"},"2021-05-31","2021-06-01","2021-06-02","2021-06-03","2021-06-04","2021-06-05","2021-06-06","2021-06-07","2021-06-08","2021-06-09","2021-06-10","2021-06-11","2021-06-12","2021-06-13","2021-06-14","2021-06-15","2021-06-16","2021-06-17","2021-06-18","2021-06-19","2021-06-20","2021-06-21","2021-06-22","2021-06-23","2021-06-24","2021-06-25","2021-06-26","2021-06-27","2021-06-28","2021-06-29","2021-06-30","2021-07-01","2021-07-02","2021-07-03","2021-07-04","2021-07-05","2021-07-06","2021-07-07","2021-07-08","2021-07-09","2021-07-10","2021-07-11","2021-07-12","2021-07-13","2021-07-14","2021-07-15","2021-07-16","2021-07-17","2021-07-18","2021-07-19","2021-07-20","2021-07-21","2021-07-22","2021-07-23","2021-07-24","2021-07-25","2021-07-26","2021-07-27","2021-07-28","2021-07-29","2021-07-30","2021-07-31","2021-08-01",{"$f":"HF56+1","v":"2021-08-02"},"2021-08-03","2021-08-04","2021-08-05","2021-08-06","2021-08-07","2021-08-08","2021-08-09","2021-08-10","2021-08-11","2021-08-12","2021-08-13","2021-08-14","2021-08-15","2021-08-16","2021-08-17","2021-08-18","2021-08-19","2021-08-20","2021-08-21","2021-08-22","2021-08-23","2021-08-24","2021-08-25","2021-08-26","2021-08-27","2021-08-28","2021-08-29","2021-08-30","2021-08-31","2021-09-01","2021-09-02","2021-09-03","2021-09-04","2021-09-05","2021-09-06","2021-09-07","2021-09-08","2021-09-09","2021-09-10","2021-09-11","2021-09-12","2021-09-13","2021-09-14","2021-09-15","2021-09-16","2021-09-17","2021-09-18","2021-09-19","2021-09-20","2021-09-21","2021-09-22","2021-09-23","2021-09-24","2021-09-25","2021-09-26","2021-09-27","2021-09-28","2021-09-29","2021-09-30","2021-10-01","2021-10-02","2021-10-03","2021-10-04",{"$f":"JR56+1","v":"2021-10-05"},"2021-10-06","2021-10-07","2021-10-08","2021-10-09","2021-10-10","2021-10-11","2021-10-12","2021-10-13","2021-10-14","2021-10-15","2021-10-16","2021-10-17","2021-10-18","2021-10-19","2021-10-20","2021-10-21","2021-10-22","2021-10-23","2021-10-24","2021-10-25","2021-10-26","2021-10-27","2021-10-28","2021-10-29","2021-10-30","2021-10-31","2021-11-01","2021-11-02","2021-11-03","2021-11-04","2021-11-05","2021-11-06","2021-11-07","2021-11-08","2021-11-09","2021-11-10","2021-11-11","2021-11-12","2021-11-13","2021-11-14","2021-11-15","2021-11-16","2021-11-17","2021-11-18","2021-11-19","2021-11-20","2021-11-21","2021-11-22","2021-11-23","2021-11-24","2021-11-25","2021-11-26","2021-11-27","2021-11-28","2021-11-29","2021-11-30","2021-12-01","2021-12-02","2021-12-03","2021-12-04","2021-12-05","2021-12-06","2021-12-07",{"$f":"MD56+1","v":"2021-12-08"},"2021-12-09","2021-12-10","2021-12-11","2021-12-12","2021-12-13","2021-12-14","2021-12-15","2021-12-16","2021-12-17","2021-12-18","2021-12-19","2021-12-20","2021-12-21","2021-12-22","2021-12-23","2021-12-24","2021-12-25","2021-12-26","2021-12-27","2021-12-28","2021-12-29","2021-12-30","2021-12-31"]
[null,{"$f":"TEXT(B56,\"aaaa\")","v":"金曜日"},"土曜日","日曜日","月曜日","火曜日","水曜日","木曜日","金曜日","土曜日","日曜日","月曜日","火曜日","水曜日","木曜日","金曜日","土曜日","日曜日","月曜日","火曜日","水曜日","木曜日","金曜日","土曜日","日曜日","月曜日","火曜日","水曜日","木曜日","金曜日","土曜日","日曜日","月曜日","火曜日","水曜日","木曜日","金曜日","土曜日","日曜日","月曜日","火曜日","水曜日","木曜日","金曜日","土曜日","日曜日","月曜日","火曜日","水曜日","木曜日","金曜日","土曜日","日曜日","月曜日","火曜日","水曜日","木曜日","金曜日","土曜日","日曜日","月曜日","火曜日","水曜日","木曜日","金曜日",{"$f":"TEXT(BN56,\"aaaa\")","v":"土曜日"},"日曜日","月曜日","火曜日","水曜日","木曜日","金曜日","土曜日","日曜日","月曜日","火曜日","水曜日","木曜日","金曜日","土曜日","日曜日","月曜日","火曜日","水曜日","木曜日","金曜日","土曜日","日曜日","月曜日","火曜日","水曜日","木曜日","金曜日","土曜日","日曜日","月曜日","火曜日","水曜日","木曜日","金曜日","土曜日","日曜日","月曜日","火曜日","水曜日","木曜日","金曜日","土曜日","日曜日","月曜日","火曜日","水曜日","木曜日","金曜日","土曜日","日曜日","月曜日","火曜日","水曜日","木曜日","金曜日","土曜日","日曜日","月曜日","火曜日","水曜日","木曜日","金曜日","土曜日",{"$f":"TEXT(DZ56,\"aaaa\")","v":"日曜日"},"月曜日","火曜日","水曜日","木曜日","金曜日","土曜日","日曜日","月曜日","火曜日","水曜日","木曜日","金曜日","土曜日","日曜日","月曜日","火曜日","水曜日","木曜日","金曜日","土曜日","日曜日","月曜日","火曜日","水曜日","木曜日","金曜日","土曜日","日曜日","月曜日","火曜日","水曜日","木曜日","金曜日","土曜日","日曜日","月曜日","火曜日","水曜日","木曜日","金曜日","土曜日","日曜日","月曜日","火曜日","水曜日","木曜日","金曜日","土曜日","日曜日","月曜日","火曜日","水曜日","木曜日","金曜日","土曜日","日曜日","月曜日","火曜日","水曜日","木曜日","金曜日","土曜日","日曜日",{"$f":"TEXT(GL56,\"aaaa\")","v":"月曜日"},"火曜日","水曜日","木曜日","金曜日","土曜日","日曜日","月曜日","火曜日","水曜日","木曜日","金曜日","土曜日","日曜日","月曜日","火曜日","水曜日","木曜日","金曜日","土曜日","日曜日","月曜日","火曜日","水曜日","木曜日","金曜日","土曜日","日曜日","月曜日","火曜日","水曜日","木曜日","金曜日","土曜日","日曜日","月曜日","火曜日","水曜日","木曜日","金曜日","土曜日","日曜日","月曜日","火曜日","水曜日","木曜日","金曜日","土曜日","日曜日","月曜日","火曜日","水曜日","木曜日","金曜日","土曜日","日曜日","月曜日","火曜日","水曜日","木曜日","金曜日","土曜日","日曜日","月曜日",{"$f":"TEXT(IX56,\"aaaa\")","v":"火曜日"},"水曜日","木曜日","金曜日","土曜日","日曜日","月曜日","火曜日","水曜日","木曜日","金曜日","土曜日","日曜日","月曜日","火曜日","水曜日","木曜日","金曜日","土曜日",null,{"$f":"TEXT(JR56,\"aaaa\")","v":"月曜日"},"火曜日","水曜日","木曜日","金曜日","土曜日","日曜日","月曜日","火曜日","水曜日","木曜日","金曜日","土曜日","日曜日","月曜日","火曜日","水曜日","木曜日","金曜日","土曜日","日曜日","月曜日","火曜日","水曜日","木曜日","金曜日","土曜日","日曜日","月曜日","火曜日","水曜日","木曜日","金曜日","土曜日","日曜日","月曜日","火曜日","水曜日","木曜日","金曜日","土曜日","日曜日","月曜日","火曜日","水曜日","木曜日","金曜日","土曜日","日曜日","月曜日","火曜日","水曜日","木曜日","金曜日","土曜日","日曜日","月曜日","火曜日","水曜日","木曜日","金曜日","土曜日","日曜日","月曜日",{"$f":"TEXT(MD56,\"aaaa\")","v":"火曜日"},"水曜日","木曜日","金曜日","土曜日","日曜日","月曜日","火曜日","水曜日","木曜日","金曜日","土曜日","日曜日","月曜日","火曜日","水曜日","木曜日","金曜日","土曜日","日曜日","月曜日","火曜日","水曜日","木曜日","金曜日"]
[]
[]
[]
[]
[]
[]
[]
[]
[]
[]
[]
[]
[]
[null,null,null,null,null,null,null,null,null,null,null,null,null,null,null,null,null,null,null,null,null,null,null,null,null,null,null,null,null,null,null,null,null,null,null,null,null,null,null,null,null,null,null,null,null,null,null,null,null,null,null,null,null,null,null,null,null,null,null,null,null,null,null,null,null,null,null,null,null,null,null,null,null,null,null,null,null,null,null,null,null,null,null,"　夕食作り牛肉ですき焼き。",null,null,null,null,null,null,null,null,null,null,null,null,null,null,null,null,null,null,null,null,null,null,null,null,"光夫さんは当選、ただし思ったほど今日は多く",null,null,null,null,null,null,null,null,null,null,null,null,null,null,null,null,null,null,null,null,null,null,null,null,null,null,null,null,null,null,null,null,null,null,null,null,null,null,null,null,null,"苦労した。1時間くらい要した。"]
[null,null,null,null,null,null,null,null,null,null,null,null,null,null,null,null,null,null,null,null,null,null,null,null,null,null,null,null,null,null,null,null,null,null,null,null,null,null,null,null,null,null,null,null,null,null,null,null,null,null,null,null,null,null,null,null,null,null,null,null,null,null,null,null,null,null,null,null,null,null,null,null,null,null,null,null,null,null,null,null,null,null,null,null,null,null,null,null,null,null,null,null,null,null,null,null,null,null,null,null,null,null,null,null,null,null,null,null,"ない。",null,null,null,null,null,null,null,null,null,null,null,null,null,null,null,null,null,null,null,null,null,null,null,null,null,null,null,null,null,null,null,null,null,null,null,null,null,null,null,null,null,"　散髪。"]
[]
[]
[]
[]
[]
[]
[]
[]
[]
[]
[null,null,null,null,null,null,null,null,null,null,null,null,null,null,null,null,null,null,null,null,null,null,null,null,null,null,null,null,null,null,null,null,null,null,null,null,null,null,null,null,null,null,null,null,null,null,null,null,null,null,null,null,null,"晴‌れ‌カ‌ン‌マ‌ゆ‌き‌が‌消‌え‌た‌ニュー‌ラ‌イ‌ン‌で‌曲‌名‌盤‌で‌管‌弦‌楽‌編‌を‌再‌起‌動‌室‌内‌楽‌編‌を‌一‌部‌足‌摺‌し‌た‌"]
[null,null,null,null,null,null,null,null,null,null,null,null,null,null,null,null,null,null,null,null,null,null,null,null,null,null,null,null,null,null,null,null,null,null,null,null,null,null,null,null,null,null,null,null,null,null,null,null,null,null,null,null,null,"ピ‌リ‌オ‌ド‌リ‌オ‌に‌送っ‌た‌り‌す‌る‌の‌を‌考‌え‌て‌の‌町‌釣‌り‌ピ‌リ‌オ‌ド‌ニュー‌ラ‌イ‌ン‌信‌長‌の‌真‌打‌送‌信‌時‌の‌ ‌"]
[null,null,null,null,null,null,null,null,null,null,null,null,null,null,null,null,null,null,null,null,null,null,null,null,null,null,null,null,null,null,null,null,null,null,null,null,null,null,null,null,null,null,null,null,null,null,null,null,null,null,null,null,null,"DVD‌‌を‌パ‌ソ‌コ‌ン‌に‌か‌け‌て‌音‌を‌抽‌出‌す‌る‌作‌業‌ピ‌リ‌オ‌ド‌パ‌ソ‌コ‌ン‌で‌‌DVD‌‌が‌見‌れ‌な‌い‌た‌め‌カ‌ン‌"]
[null,null,null,null,null,null,null,null,null,null,null,null,null,null,null,null,null,null,null,null,null,null,null,null,null,null,null,null,null,null,null,null,null,null,null,null,null,null,null,null,null,null,null,null,null,null,null,null,null,null,null,null,null,"マ‌‌Microsoft‌‌か‌ら‌‌DVD‌‌プ‌レー‌ヤー‌を‌購‌入‌し‌た‌ピ‌リ‌オ‌ド‌ソ‌フ‌ト‌代‌で‌1750‌円‌ピ‌リ‌オ‌ド‌正‌し‌い‌結‌"]
[null,null,null,null,null,null,null,null,null,null,null,null,null,null,null,null,null,null,null,null,null,null,null,null,null,null,null,null,null,null,null,null,null,null,null,null,null,null,null,null,null,null,null,null,null,null,null,null,null,null,null,null,null,"果‌と‌し‌て‌は‌カ‌ン‌マ‌こ‌の‌プ‌レー‌ヤー‌で‌も‌映‌像‌な‌ど‌が‌出‌な‌かっ‌た‌ピ‌リ‌オ‌ド‌他‌の‌方‌法‌を‌考‌え‌な‌け‌れ‌"]
[null,null,null,null,null,null,null,null,null,null,null,null,null,null,null,null,null,null,null,null,null,null,null,null,null,null,null,null,null,null,null,null,null,null,null,null,null,null,null,null,null,null,null,null,null,null,null,null,null,null,null,null,null,"ば‌な‌ら‌な‌い‌ピ‌リ‌オ‌ド‌ ‌"]
[]
[]
[]
[]
[]
[]
[]
[]
[]
[]
[]
[]
[]
[]
[]
[]
[]
[]
[]
[]
[]
[]
[]
[]
[]
[]
[]
[]
[]
[]
[]
[]
[]
[]
[]
[]
[]
[]
[]
[]
[]
[]
[]
[]
[]
[]
[]
[]
[]
[]
[]
[]
[]
[]
[]
[]
[]
[]
[]
[]
[]
[]
[]
[]
[]
[]
[]
[]
[]
[]
[]
[]
[]
[]
[]
[]
[]
[]
[]
[]
[]
[]
[]
[]
[]
[]
[]
[]
[]
[]
[]
[]
[]
[]
[]
[]
[]
[]
[]
[]
[]
[]
[]
[]
[]
[]
[]
[]
[]
[]
[]
[]
[]
[]
[]
[]
[]
[]
[]
[]
[]
[]
[]
[]
[]
[]
[]
[]
[]
[]
[]
[]
[]
[]
[]
[]
[]
[]
[]
[]
[]
[]
[]
[]
[]
[]
[]
[]
[]
[]
[]
[]
[]
[]
[]
[]
[]
[]
[]
[]
[]
[]
[]
[]
[]
[]
[]
[]
[]
[]
[]
[]
[]
[]
[]
[]
[]
[]
[]
[]
[]
[]
[]
[]
[]
[]
[]
[]
[]
[]
[]
[]
[]
[]
[]
[]
[]
[]
[]
[]
[]
[]
[]
[]
[]
[]
[]
[]
[]
[]
[]
[]
[]
[]
[]
[]
[]
[]
[]
[]
[]
[]
[]
[]
[]
[]
[]
[]
[]
[]
[]
[]
[]
[]
[]
[]
[]
[]
[]
[]
[]
[]
[]
[]
[]
[]
[]
[]
[]
[]
[]
[]
[]
[]
[]
[]
[]
[]
[]
[]
[]
[]
[]
[]
[]
[]
[]
[]
[]
[]
[]
[]
[]
[]
[]
[]
[]
[]
[]
[]
[]
[]
[]
[]
[]
[]
[]
[]
[]
[]
[]
[]
[]
[]
[]
[]
[]
[]
[]
[]
[]
[]
[]
[]
[]
[]
[]
[]
[]
[]
[]
[]
[]
[]
[]
[]
[]
[]
[]
[]
[]
[]
[]
[]
[]
[]
[]
[]
[]
[]
[]
[]
[]
[]
[]
[]
[]
[]
[]
[]
[]
[]
[]
[]
[]
[]
[]
[]
[]
[]
[]
[]
[]
[]
[]
[]
[]
[]
[]
[]
[]
[]
[]
[]
[]
[]
[]
[]
[]
[]
[]
[]
[]
[]
[]
[]
[]
[]
[]
[]
[]
[]
[]
[]
[]
[]
[]
[]
[]
[]
[]
[]
[]
[]
[]
[]
[]
[]
[]
[]
[]
[]
[]
[]
[]
[]
[]
[]
[]
[]
[]
[]
[]
[]
[]
[]
[]
[]
[]
[]
[]
[]
[]
[]
[]
[]
[]
[]
[]
[]
[]
[]
[]
[]
[]
[]
[]
[]
[]
[]
[]
[]
[]
[]
[]
[]
[]
[]
[]
[]
[]
[]
[]
[]
[]
[]
[]
[]
[]
[]
[]
[]
[]
[]
[]
[]
[]
[]
[]
[]
[]
[]
[]
[]
[]
[]
[]
[]
[]
[]
[]
[]
[]
[]
[]
[]
[]
[]
[]
[]
[]
[]
[]
[]
[]
[]
[]
[]
[]
[]
[]
[]
[]
[]
[]
[]
[]
[]
[]
[]
[]
[]
[]
[]
[]
[]
[]
[]
[]
[]
[]
[]
[]
[]
[]
[]
[]
[]
[]
[]
[]
[]
[]
[]
[]
[]
[]
[]
[]
[]
[]
[]
[]
[]
[]
[]
[]
[]
[]
[]
[]
[]
[]
[]
[]
[]
[]
[]
[]
[]
[]
[]
[]
[]
[]
[]
[]
[]
[]
[]
[]
[]
[]
[]
[]
[]
[]
[]
[]
[]
[]
[]
[]
[]
[]
[]
[]
[]
[]
[]
[]
[]
[]
[]
[]
[]
[]
[]
[]
[]
[]
[]
[]
[]
[]
[]
[]
[]
[]
[]
[]
[]
[]
[]
[]
[]
[]
[]
[]
[]
[]
[]
[]
[]
[]
[]
[]
[]
[]
[]
[]
[]
[]
[]
[]
[]
[]
[]
[]
[]
[]
[]
[]
[]
[]
[]
[]
[]
[]
[]
[]
[]
[]
[]
[]
[]
[]
[]
[]
[]
[]
[]
[]
[]
[]
[]
[]
[]
[]
[]
[]
[]
[]
[]
[]
[]
[]
[]
[]
[]
[]
[]
[]
[]
[]
[]
[]
[]
[]
[]
[]
[]
[]
[]
[]
[]
[]
[]
[]
[]
[]
[]
[]
[]
[]
[]
[]
[]
[]
[]
[]
[]
[]
[]
[]
[]
[]
[]
[]
[]
[]
[]
[]
[]
[]
[]
[]
[]
[]
[]
[]
[]
[]
[]
[]
[]
[]
[]
[]
[]
[]
[]
[]
[]
[]
[]
[]
[]
[]
[]
[]
[]
[]
[]
[]
[]
[]
[]
[]
[]
[]
[]
[]
[]
[]
[]
[]
[]
[]
[]
[]
[]
[]
[]
[]
[null,null,null,null,null,null,null,null,null,null,null,null,null,null,null,null,null,null,null,null,null,null,null,null,null,null,null,null,null,null,null,null,null,null,null,null,null,null,null,null,null,null,null,null,null,null,null,null,null,null,null,null,null,null,null,null,null,null,null,null,null,null,null,null,null,null,null,null,null,null,null,null,null,null,null,null,null,null,null,null,null,null,null,null,null,null,null,null,null,null,null,null,null,null,null,null,null,null,null,null,null,null,null,null,null,null,null,null,null,null,null,null,null,null,null,null,null,null,null,null,null,null,null,null,null,null,null,null,null,null,null,null,null,null,null,null,null,null,null,null,null,null,null,null,null,null,null,null,null,null,null,null,null,null,null,null,null,null,null,null,null,null,null,null,null,null,null,null,null,null,null,null,null,null,null,null,null,null,null,null,null,null,null,null,null,null,null,null,null,null,null,null,null,null,null,null,null,null,null,null,null,null,null,null,null,null,null,null,null,null,null,null,null,null,null,null,null,null,null,null,null,null,null,null,null,null,null,null,null,null,null,null,null,null,null,null,null,null,null,null,null,null,null,null,null,null,null,null,null,null,null,null,null,null,null,null,null,null,null,null,null,null,null,null,null,null,null,null,null,null,null,null,null,null,null,null,null,null,null,null,null,null,null,null,null,null,null,null,null,null,null,null,null,null,null,null,null,null,null,null,null,null,null,null,null,null,null,null,null,null,null,null,null,null,null,null,null,null,null,"　曇り時々晴","曇り時々晴れ","　曇り時々晴れ","雑木前畑からウリハダカエデの苗を抜き竹林","　晴れ時々曇り","曇り時々小雨",null,null,null,null,null,null,null,null,null,null,null,"曇りのち雨","曇りのち雨",null,"曇りのち雨"]
[null,null,null,null,null,null,null,null,null,null,null,null,null,null,null,null,null,null,null,null,null,null,null,null,null,null,null,null,null,null,null,null,null,null,null,null,null,null,null,null,null,null,null,null,null,null,null,null,null,null,null,null,null,null,null,null,null,null,null,null,null,null,null,null,null,null,null,null,null,null,null,null,null,null,null,null,null,null,null,null,null,null,null,null,null,null,null,null,null,null,null,null,null,null,null,null,null,null,null,null,null,null,null,null,null,null,null,null,null,null,null,null,null,null,null,null,null,null,null,null,null,null,null,null,null,null,null,null,null,null,null,null,null,null,null,null,null,null,null,null,null,null,null,null,null,null,null,null,null,null,null,null,null,null,null,null,null,null,null,null,null,null,null,null,null,null,null,null,null,null,null,null,null,null,null,null,null,null,null,null,null,null,null,null,null,null,null,null,null,null,null,null,null,null,null,null,null,null,null,null,null,null,null,null,null,null,null,null,null,null,null,null,null,null,null,null,null,null,null,null,null,null,null,null,null,null,null,null,null,null,null,null,null,null,null,null,null,null,null,null,null,null,null,null,null,null,null,null,null,null,null,null,null,null,null,null,null,null,null,null,null,null,null,null,null,null,null,null,null,null,null,null,null,null,null,null,null,null,null,null,null,null,null,null,null,null,null,null,null,null,null,null,null,null,null,null,null,null,null,null,null,null,null,null,null,null,null,null,null,null,null,null,null,null,null,null,null,null,null,null,null,null,null,null,"　VBAの編集変換のシートを使わない方法","曇り","　サロン田家に参加する。参加者8名。","ほぼ終日雨","　音楽ファイルの整理。","銀杏の落ち葉かきをする、二の畑と一の坂","　唐楓の種を取る。唐楓のPの下の落ち","　欅台の銀杏の落ち葉かきをする1.5時間、","　一の坂の枯葉の落ち葉かきをする、1.5","　昨日の続きのベンチ作りに着手する。足","晴れのち曇り","曇りP備忘録の整理","曇り","薄曇り","雨","曇りのち雨","曇りのち晴れ","小雨","曇り","　財津和夫の音楽取り込みをするYouTubeか","曇り時々小雪","は池寿司。Mが待機場所にしていた下の橋","終日雨","雨のち曇り","。竹添さんといっしょ。午後は名曲百選。","曇り","曇り時々晴れ","曇りのち雨","一日中雨","曇り時々雨","雨のち曇り","　　トウカエデの種をまく、その準備。苗","晴れのち曇り","　小雨","曇り","　曇り時々雨","晴れ","小雨P名曲と銘板の作業。","　曇り","　朝から雪、朝積雪うっすら、夕方積","　一日中雪、夕方積雪30CM弱","　粉雪時々晴れ"]
[null,null,null,null,null,null,null,null,null,null,null,null,null,null,null,null,null,null,null,null,null,null,null,null,null,null,null,null,null,null,null,null,null,null,null,null,null,null,null,null,null,null,null,null,null,null,null,null,null,null,null,null,null,null,null,null,null,null,null,null,null,null,null,null,null,null,null,null,null,null,null,null,null,null,null,null,null,null,null,null,null,null,null,null,null,null,null,null,null,null,null,null,null,null,null,null,null,null,null,null,null,null,null,null,null,null,null,null,null,null,null,null,null,null,null,null,null,null,null,null,null,null,null,null,null,null,null,null,null,null,null,null,null,null,null,null,null,null,null,null,null,null,null,null,null,null,null,null,null,null,null,null,null,null,null,null,null,null,null,null,null,null,null,null,null,null,null,null,null,null,null,null,null,null,null,null,null,null,null,null,null,null,null,null,null,null,null,null,null,null,null,null,null,null,null,null,null,null,null,null,null,null,null,null,null,null,null,null,null,null,null,null,null,null,null,null,null,null,null,null,null,null,null,null,null,null,null,null,null,null,null,null,null,null,null,null,null,null,null,null,null,null,null,null,null,null,null,null,null,null,null,null,null,null,null,null,null,null,null,null,null,null,null,null,null,null,null,null,null,null,null,null,null,null,null,null,null,null,null,null,null,null,null,null,null,null,null,null,null,null,null,null,null,null,null,null,null,null,null,null,null,null,null,null,null,null,null,null,null,null,null,null,null,null,null,null,null,null,null,null,null,null,null,null,null,null,null,null,null,null,null,null,null,null,null,null,null,null,null,null,null,null,null,null,null,null,null,null,null,null,null,null,null,null,null,null,null,null,null,null,null,null,null,null,null,"　労災の資料を担当区域に配布する。"]
[null,null,null,null,null,null,null,null,null,null,null,null,null,null,null,null,null,null,null,null,null,null,null,null,null,null,null,null,null,null,null,null,null,null,null,null,null,null,null,null,null,null,null,null,null,null,null,null,null,null,null,null,null,null,null,null,null,null,null,null,null,null,null,null,null,null,null,null,null,null,null,null,null,null,null,null,null,null,null,null,null,null,null,null,null,null,null,null,null,null,null,null,null,null,null,null,null,null,null,null,null,null,null,null,null,null,null,null,null,null,null,null,null,null,null,null,null,null,null,null,null,null,null,null,null,null,null,null,null,null,null,null,null,null,null,null,null,null,null,null,null,null,null,null,null,null,null,null,null,null,null,null,null,null,null,null,null,null,null,null,null,null,null,null,null,null,null,null,null,null,null,null,null,null,null,null,null,null,null,null,null,null,null,null,null,null,null,null,null,null,null,null,null,null,null,null,null,null,null,null,null,null,null,null,null,null,null,null,null,null,null,null,null,null,null,null,null,null,null,null,null,null,null,null,null,null,null,null,null,null,null,null,null,null,null,null,null,null,null,null,null,null,null,null,null,null,null,null,null,null,null,null,null,null,null,null,null,null,null,null,null,null,null,null,null,null,null,null,null,null,null,null,null,null,null,null,null,null,null,null,null,null,null,null,null,null,null,null,null,null,null,null,null,null,null,null,null,null,null,null,null,null,null,null,null,null,null,null,null,null,null,null,null,null,null,null,null,null,null,null,null,null,null,null,null,null,null,null,null,null,null,null,null,null,null,null,null,null,null,null,null,null,null,null,null,null,null,null,null,null,null,null,null,null,null,null,null,null,null,null,null,null,null,null,"　梨央の雪遊びの準備をする。処理を出し","　敬一郎と菜穂子達は昼に高見のおばあち"]
[null,null,null,null,null,null,null,null,null,null,null,null,null,null,null,null,null,null,null,null,null,null,null,null,null,null,null,null,null,null,null,null,null,null,null,null,null,null,null,null,null,null,null,null,null,null,null,null,null,null,null,null,null,null,null,null,null,null,null,null,null,null,null,null,null,null,null,null,null,null,null,null,null,null,null,null,null,null,null,null,null,null,null,null,null,null,null,null,null,null,null,null,null,null,null,null,null,null,null,null,null,null,null,null,null,null,null,null,null,null,null,null,null,null,null,null,null,null,null,null,null,null,null,null,null,null,null,null,null,null,null,null,null,null,null,null,null,null,null,null,null,null,null,null,null,null,null,null,null,null,null,null,null,null,null,null,null,null,null,null,null,null,null,null,null,null,null,null,null,null,null,null,null,null,null,null,null,null,null,null,null,null,null,null,null,null,null,null,null,null,null,null,null,null,null,null,null,null,null,null,null,null,null,null,null,null,null,null,null,null,null,null,null,null,null,null,null,null,null,null,null,null,null,null,null,null,null,null,null,null,null,null,null,null,null,null,null,null,null,null,null,null,null,null,null,null,null,null,null,null,null,null,null,null,null,null,null,null,null,null,null,null,null,null,null,null,null,null,null,null,null,null,null,null,null,null,null,null,null,null,null,null,null,null,null,null,null,null,null,null,null,null,null,null,null,null,null,null,null,null,null,null,null,null,null,null,null,null,null,null,null,null,null,null,null,null,null,null,null,null,null,null,null,null,null,null,null,null,null,null,null,null,null,null,null,null,null,null,null,null,null,null,null,null,null,null,null,null,null,null,null,null,null,null,null,null,null,null,null,null,null,null,null,null,"たりなど。除雪道具一式出す。P","ゃんちへ行く。"]
[null,null,null,null,null,null,null,null,null,null,null,null,null,null,null,null,null,null,null,null,null,null,null,null,null,null,null,null,null,null,null,null,null,null,null,null,null,null,null,null,null,null,null,null,null,null,null,null,null,null,null,null,null,null,null,null,null,null,null,null,null,null,null,null,null,null,null,null,null,null,null,null,null,null,null,null,null,null,null,null,null,null,null,null,null,null,null,null,null,null,null,null,null,null,null,null,null,null,null,null,null,null,null,null,null,null,null,null,null,null,null,null,null,null,null,null,null,null,null,null,null,null,null,null,null,null,null,null,null,null,null,null,null,null,null,null,null,null,null,null,null,null,null,null,null,null,null,null,null,null,null,null,null,null,null,null,null,null,null,null,null,null,null,null,null,null,null,null,null,null,null,null,null,null,null,null,null,null,null,null,null,null,null,null,null,null,null,null,null,null,null,null,null,null,null,null,null,null,null,null,null,null,null,null,null,null,null,null,null,null,null,null,null,null,null,null,null,null,null,null,null,null,null,null,null,null,null,null,null,null,null,null,null,null,null,null,null,null,null,null,null,null,null,null,null,null,null,null,null,null,null,null,null,null,null,null,null,null,null,null,null,null,null,null,null,null,null,null,null,null,null,null,null,null,null,null,null,null,null,null,null,null,null,null,null,null,null,null,null,null,null,null,null,null,null,null,null,null,null,null,null,null,null,null,null,null,null,null,null,null,null,null,null,null,null,null,null,null,null,null,null,null,null,null,null,null,null,null,null,null,null,null,null,null,null,null,null,null,null,null,null,null,null,null,null,null,null,null,null,null,null,null,null,null,null,null,null,null,null,null,null,null,null,null,"てる昼食チャーハン作り夕食用におでんを"]
[null,null,null,null,null,null,null,null,null,null,null,null,null,null,null,null,null,null,null,null,null,null,null,null,null,null,null,null,null,null,null,null,null,null,null,null,null,null,null,null,null,null,null,null,null,null,null,null,null,null,null,null,null,null,null,null,null,null,null,null,null,null,null,null,null,null,null,null,null,null,null,null,null,null,null,null,null,null,null,null,null,null,null,null,null,null,null,null,null,null,null,null,null,null,null,null,null,null,null,null,null,null,null,null,null,null,null,null,null,null,null,null,null,null,null,null,null,null,null,null,null,null,null,null,null,null,null,null,null,null,null,null,null,null,null,null,null,null,null,null,null,null,null,null,null,null,null,null,null,null,null,null,null,null,null,null,null,null,null,null,null,null,null,null,null,null,null,null,null,null,null,null,null,null,null,null,null,null,null,null,null,null,null,null,null,null,null,null,null,null,null,null,null,null,null,null,null,null,null,null,null,null,null,null,null,null,null,null,null,null,null,null,null,null,null,null,null,null,null,null,null,null,null,null,null,null,null,null,null,null,null,null,null,null,null,null,null,null,null,null,null,null,null,null,null,null,null,null,null,null,null,null,null,null,null,null,null,null,null,null,null,null,null,null,null,null,null,null,null,null,null,null,null,null,null,null,null,null,null,null,null,null,null,null,null,null,null,null,null,null,null,null,null,null,null,null,null,null,null,null,null,null,null,null,null,null,null,null,null,null,null,null,null,null,null,null,null,null,null,null,null,null,null,null,null,null,null,null,null,null,null,null,null,null,null,null,null,null,null,null,null,null,null,null,null,null,null,null,null,null,null,null,null,null,null,null,null,null,null,null,null,null,null,null,"菜穂子と大介さん20時過ぎに到着。"]
[null,null,null,null,null,null,null,null,null,null,null,null,null,null,null,null,null,null,null,null,null,null,null,null,null,null,null,null,null,null,null,null,null,null,null,null,null,null,null,null,null,null,null,null,null,null,null,null,null,null,null,null,null,null,null,null,null,null,null,null,null,null,null,null,null,null,null,null,null,null,null,null,null,null,null,null,null,null,null,null,null,null,null,null,null,null,null,null,null,null,null,null,null,null,null,null,null,null,null,null,null,null,null,null,null,null,null,null,null,null,null,null,null,null,null,null,null,null,null,null,null,null,null,null,null,null,null,null,null,null,null,null,null,null,null,null,null,null,null,null,null,null,null,null,null,null,null,null,null,null,null,null,null,null,null,null,null,null,null,null,null,null,null,null,null,null,null,null,null,null,null,null,null,null,null,null,null,null,null,null,null,null,null,null,null,null,null,null,null,null,null,null,null,null,null,null,null,null,null,null,null,null,null,null,null,null,null,null,null,null,null,null,null,null,null,null,null,null,null,null,null,null,null,null,null,null,null,null,null,null,null,null,null,null,null,null,null,null,null,null,null,null,null,null,null,null,null,null,null,null,null,null,null,null,null,null,null,null,null,null,null,null,null,null,null,null,null,null,null,null,null,null,null,null,null,null,null,null,null,null,null,null,null,null,null,null,null,null,null,null,null,null,null,null,null,null,null,null,null,null,null,null,null,null,null,null,null,null,null,null,null,null,null,null,null,null,null,null,null,null,null,null,null,null,null,null,null,null,null,null,null,null,null,null,null,null,null,null,null,null,null,null,null,null,null,null,null,null,null,null,null,null,null,null,null,null,null,null,null,null,null,null,null,"のは16時半。"]
[]
[]
[]
[]
[]
[]
[]
[]
[]
[]
[]
[]
[]
[]
[]
[]
[]
[]
[]
[]
[]
[]
[]
[]
[]
[]
[]
[]
[]
[]
[]
[]
[]
[]
[]
[]
[]
[]
[]
[]
[]
[]
[]
[]
[]
[]
[]
[]
[]
[]
[]
[]
[]
[]
[]
[]
[]
[]
[]
[]
[]
[]
[]
[]
[]
[]
[]
[]
[]
[]
[]
[]
[]
[]
[]
[]
[]
[]
[]
[]
[]
[]
[]
[]
[]
[]
[]
[]
[null,"　曇り","晴れ","晴れ"]
[null,null,null,"　動画編集を少し。"]
[null,null,null,"　午後2時過ぎから龍岩神社に初詣。雪の"]
[null,"　9時頃から朝昼兼用の食事。雑煮などで",null,"初詣となる。参詣者は他に誰もおらず。"]
[]
[]
[]
[]
[]
[]
[]
[]
[]
[]
[]
[]
[]
[]
[]
[]
[]
[]
[]
[]
[null,null,null,null,null,"こを取り外す落としたが雪の上に上がれず中","晴れ","　薪運び。取り忘れていた部屋の上のすの",null,null,null,null,null,null,null,null,null,null,null,null,null,null,null,null,null,null,null,null,null,null,null,null,null,null,null,null,null,null,null,null,null,null,null,null,null,null,null,null,null,null,null,null,null,null,null,null,null,null,null,null,null,null,null,null,null,null,null,null,null,null,null,null,null,null,null,null,null,null,null,null,null,null,null,null,null,null,null,null,null,null,null,null,null,null,null,null,null,null,null,null,null,null,null,null,null,null,null,null,null,null,null,null,null,null,null,null,null,null,null,null,null,null,null,null,null,null,null,null,null,null,null,null,null,null,null,null,null,null,null,null,null,null,null,null,null,null,null,null,null,null,null,null,null,null,null,null,null,null,null,null,null,null,null,null,null,null,null,null,null,null,null,null,null,null,null,null,null,null,null,null,null,null,null,null,null,null,null,null,null,null,null,null,null,null,null,null,null,null,null,null,null,null,null,null,null,null,null,null,null,null,null,null,null,null,null,null,null,null,null,null,null,null,null,null,null,null,null,null,null,null,null,null,null,null,null,null,null,null,null,null,null,null,null,null,null,null,null,null,null,null,null,null,null,null,null,null,null,null,null,null,null,null,null,null,null,null,null,null,null,null,null,null,null,null,null,null,43376]
[null,null,null,null,null,null,null,null,null,null,null,null,null,null,"晴れ、すこぶる良い天気","曇り時々小雨","　朝粉雪が降る","曇り","晴れそしてあったかい","晴れ、暖かし","雨のち晴れ","曇り時々晴れ","　曇り土屋さん亡くなる","晴れ時々曇り"]
[null,"曇り、雪のない元旦","8時頃家を出て、広島へ映画を観に行く。福屋","曇り","曇り","曇り","入力のテキスト作りなど","入力のテキスト作りなど。","曇り改","曇り","晴れ、夕方から曇る","曇り","曇り","曇り","曇り","曇り","曇り"," 曇り時々晴れ","晴れ、暖かな良い天気","晴れ、暖かな良い天気","晴れ、暖かな良い天気",null,null,null,null,null,null,null,null,null,null,null,null,null,null,null,null,null,null,null,null,null,null,null,null,null,null,null,null,null,null,null,null,null,null,null,null,null,null,null,null,null,null,null,null,null,null,null,null,null,null,null,null,null,null,null,null,null,null,null,null,null,null,null,null,null,null,null,null,null,null,null,null,null,null,null,null,null,null,null,null,null,null,null,null,null,null,null,null,null,null,null,null,null,null,null,null,null,null,null,null,null,null,null,null,null,null,null,null,null,null,null,null,null,null,null,null,null,null,null,null,null,null,null,null,null,null,null,null,null,null,null,null,null,null,null,null,null,null,null,null,null,null,null,null,null,null,null,null,null,null,null,null,null,null,null,null,null,null,null,null,null,null,null,null,null,null,null,null,null,null,null,null,null,null,null,null,null,null,null,null,null,null,null,null,null,null,null,null,null,null,null,null,null,null,null,null,null,null,null,null,null,null,null,null,null,null,null,null,null,null,null,null,null,null,null,null,null,null,null,null,null,null,null,null,null,null,null,null,null,null,null,null,null,null,null,null,null,null,null,null,null,null,null,null,null,null,null,null,null,null,null,null,null,null,null,null,null,null,null,null,null,null,null,null,null,null,null,null,null,null,null,null,null,null,null,null,null,null,null,null,null,null,null,null,null,null,null,null,null,null,null,null,null,null,null,null,null,null,null,null,null,null,null,null,null,null,null,null,null,null,null,null,null,null,null,null,null,null,null,null,null,null,null,null,"　音声入力のテキスト作りなど。",null,null,"さん、千秋さんと千秋さんの子供3人で行う。",43449," 晴れ","曇りのち晴れ","曇り","晴れ","ほぼ一日中社協用の奨学金ソフトの修正に費や","曇り","曇り","曇り","曇り","晴れ、良い天気","雨","曇り","曇",null,"　敬一郎と梨央が帰る日。昼食を食べて家を出","曇り、大分寒くなる"]
[null,null,null,null,null,null,null,null,null,null,null,null,null,null,null,null,null,null,null,"　備忘録の改行がうまくいかない点について修"]
[null,null,null,null,null,null,null,null,null,null,null,null,null,null,null,null,null,null,null,null,null,null,null,null,null,null,null,null,null,null,null,null,null,null,null,null,null,null,null,null,null,null,null,null,null,null,null,null,null,null,null,null,null,null,null,null,null,null,null,null,null,null,null,null,null,null,null,null,null,null,null,null,null,null,null,null,null,null,null,null,null,null,null,null,null,null,null,null,null,null,null,null,null,null,null,null,null,null,null,null,null,null,null,null,null,null,null,null,null,null,null,null,null,null,null,null,null,null,"　山水を調整して出すようにした山水の調整山","晴れ、快晴の良い天気","晴れ、快晴の良い天気","晴れ快晴の良い天気、今日も暖か","晴れ時々曇り"," 晴れ時々曇り","雨時々曇り","曇のち時々晴","晴れ時々曇り、かなり暑くなってきた"," 曇りのち晴れ"," 晴れ良い天気","晴れ良い天気"," 晴れ良い天気","　朝一で義衛台の草刈りをした。バシバシにて","晴れ良い天気","曇のち時々晴","晴れて良い天気、温度は少し低い。","はれ、良い天気","曇り","雨のち曇り","曇のち時々晴"," 晴れ時々曇り"," 曇り時々晴れ","曇り時々晴れ、温度は少し低い","曇り、今日も温度が少し低い","曇のち時々晴","晴れ、爽やかな良い天気","晴れ時々曇り","曇り","ほとんど1日雨時々曇り","晴れ時々曇り","晴れ、気持ちのいい良い天気","CTや血液検査を受けて、およそ1時間後に診察"," 晴れ時々曇り"," 晴れ時々曇り敬一郎と菜穂子に昨日の出来事","晴れ","晴れ時々曇り","晴れ時々曇り"," 曇り時々晴れ","晴れ、かなり暑い","晴れ時々曇り","晴れ良い天気いうLINE収録の草刈りの日。朝8","はれ、良い天気、しかも暑い","はれ良い天気、かなり暑い","曇り、中国地方は梅雨入り宣言がされた","曇り時々晴れ","ほぼ一日降ったり止んだりの天気","朝から強い雨が続く、ほぼ一日中","　トウカエデの苗を移植した。苗床から小さな","曇りのち晴れ","　再生雑地やその他でギシギシとセイタカアワ"," 曇り時々晴れ","　品川さんから地区戦略の会計資料がメールに","AC朝小雨雨のち曇り","晴れ","はれ、良い天気",null,"晴れ","晴れ"," 朝から雨、時々強く降る","雨のち曇り","曇りのち夕方から小雨","朝雨か雨のち晴れ","曇り夕方から雨","朝小雨のち曇り時々晴れ"," 朝から降ったり止んだり","曇り時々晴れ"," 曇りのち雨、思ったより強い雨になった","朝から小雨降り続く。昨日に続いて名曲名盤の",null,null,null," 雨のち曇り","　山水の筧の付け根の部分が砂に埋まり破損し","朝からほぼ終日","朝晴れ、その後曇り","曇り",null,"深夜から大雨となる","曇り時々小雨","曇り","曇り時々晴れ","曇り時々晴れ",null," 曇り時々晴れ"," 曇り時々雨","ほぼ1日飴"," ほぼ1日雨","ほぼ一日中雨"," 曇り時々晴れ","曇り時々雨"," 一日中雨OneNoteでの音声入力に再度挑戦した。"," 曇り時々雨"," 曇り時々雨いっ昨日送った音声入力の勧めで、","曇り時々晴れ、梅雨明け","晴れ、夏らしい天気になった","朝から晴れ、ただし湿気があって暑い"," 晴れ"," 曇り時々晴れ、湿度が高く暑い","晴れ、暑い日が続く"," 晴れ、暑い"," 晴れ時々曇り"," 朝少し雨、のち曇り"," 曇り一時雨","晴れ、暑い","曇り風が強い、台風の影響らしい"," 曇り時々晴れ"," 晴れ"," 晴れ","晴れ、かなり暑い","晴れひどく暑い","晴れ、夏らしい良い天気",null,"晴れ、かなり暑い正しい湿気は少ない",null,"晴れ、暑い日","晴れ暑い日","晴れ暑い日が続く","曇りのち一時止め","雑地の草焼きをした。1時間、全て完了した。","晴れ、暑い日が続く","晴れ良い天気","はれ、良い天気","晴れ","晴れ夕方雨、久しぶりにかなり強い雨であった","はれ、良い天気","　展望台への道の右側を草刈りする。0.5時間","晴れ良い天気","晴れ暑い日","曇りのち晴れ、朝方台風959号の影響で風が強","曇り時々晴れ、、1時小雨","曇り、少し涼しくなってきた","晴れのち曇り","曇り時々小雨のち曇り","晴れ時々曇り","晴れ、少し涼しくなった","曇り","雨時々曇り、久しぶりにしっかりとした雨","朝から雨、時々強い雨","晴れ時々曇り","晴れ","はれ、良い天気","曇り","ほぼ1日強い雨","天神丸日続きの雨である","AC晴れ","晴れ、朝夕は少し寒いくらい","晴れ、涼しくなって作業がしやすい","夕食作り、晴れ時々曇り","曇りのち晴れ","ほとんど1日雨","雨のち曇り","雨のち曇りMはウォーキングで秘話に行く。そ","曇りのち晴れ","晴れ良い天気","雲ひとつない良い天気","曇り午後1時小雨","晴れの良い天気","晴れ","草を焼いた。0.5時間。P丸刃の研磨をした。P","曇り一時小雨","朝小雨昼過ぎから曇りになる理由LINE","曇り","はれ、良いペンキ","朝は雨のち曇り、少し寒くなってきた","曇り",null,"曇り","晴れ","晴れ、爽やかな良い天気","朝1時小雨のち曇り","晴れ","曇り時々晴れ","雨のち曇り","晴れ、良い天気","晴れ","晴れPノートパソコンのX","晴れ、良い天気","朝から雨、一日中続く","晴れ時々曇り",null,"はれ、良い天気","はれかんも良い天気","晴れ、爽やかな良い天気P菜穂子あってX",null,"曇りのち晴れ","　昼食作り、チャーハン。藤井恵さんの別の本","晴れて良い天気、朝初霜となる","曇り時々晴れ",null,"曇り時々晴れ","晴れ、良い天気","晴れ、あさ大下。","曇り一時晴れ、晴れた時は良い天気","雨","　本日未明、雨リカ大統領選でバイデンさんの","曇り時々晴れ、少し気温が下がってきた","　株の帝国ホテルを売払い、全て株を処分した。","はれ、良い天気","　午後昨日の続きで、雑木の苗を移植した。雑","はれ、良い天気","晴れ穏やかな良い天気","　因原へ買い物に行く。Mは同窓会でいこいの","晴れ時々曇り","　午後から山の草刈りをした笹刈り。食作り、","曇り一時晴れ、ここのところ暖かい日が続くP","晴れ時々曇り、風が強く全てのイチョウの葉が","朝方雨、その後曇り時々晴れ","曇りのち晴れ、穏やかな良い天気になった","　昼食作りさんまそうめん。少し凝ったそうめ","　Mの染色の関係で山口さんとワイズさん（男","晴れ良い天気","晴れ良い天気","　γ-G","曇り夕方から雨","降ったり止んだりの天候であった","一日中降ったり止んだり","曇りのち晴れ","晴れ時々曇り","薄曇り","曇り時々小雨","曇り時々晴れ1時小雨","晴れ、風は冷たい","はれかぜのない暖かな良い天気","曇り時々晴れ","曇りただし薄暗くてひどく寒い","なんだか薄ら寒い曇りの天気","曇りただし風がなく穏やか","曇り、寒くなってきた","曇りアンマー寒いし","曇り、やはり寒い","朝初雪うっすらと積もる、のち曇り","あさこ雪のち曇り、見て中指終日の日","曇り一時雪、道路が凍っている","曇り一時、朝の積雪3CM","　M","曇り曇り時々小雪Pmp3をM","伏見から電話が来てパソコンの修理対応。未解","曇り","曇り時々晴れ","晴れときどきくもり","朝から雨、ほぼ1日来る","曇り","曇り","曇りのち晴れP年賀状の一部を投函しに行","晴れ暖かな良い天気P風呂掃除をする。","一安心。","曇り午後から雪が降り始める、夕方から強くな","曇り時々雪"]
[null,null,null,null,null,null,null,null,null,null,null,null,null,null,null,null,null,null,null,null,null,null,null,null,null,null,null,null,null,null,null,null,null,null,null,null,null,null,null,null,null,null,null,null,null,null,null,null,null,null,null,null,null,null,null,null,null,null,null,null,null,null,null,null,null,null,null,null,null,null,null,null,null,null,null,null,null,null,null,null,null,null,null,null,null,null,null,null,null,null,null,null,null,null,null,null,null,null,null,null,null,null,null,null,null,null,null,null,null,null,null,null,null,null,null,null,null,null,null,null,null,null,null,null,null,null,null,null,null,null,null,null,null,null,null,null,null,null,null,null,null,null,null,null,null,null,null,null,null,null,null,null,null,null,null,null,null,null,null,null,null,null,null,null,null,null,null,null,null,null,null,null,null,null,null,null,null,null,null,null,null,null,null,null,null,null,null,null,null,null,null,null,null,null,null,null,null,null,null,null,null,null,null,null,null,null,null,null,null,null,null,null,null,null,null,null,null,null,null,null,null,null,null,null,null,null,null,null,null,null,null,null,null,null,null,null,null,null,null,null,null,null,null,null,null,null,null,null,null,null,null,null,null,null,null,null,null,null,null,null,null,null,null,null,null,null,null,null,null,null,null,null,null,null,null,null,null,null,null,null,null,null,null,null,null,null,null,null,null,null,null,null,null,null,null,null,null,null,null,null,null,null,null,null,null,null,null,null,null,null,null,null,null,null,null,null,null,null,null,null,null,null,null,null,null,null,null,null,null,null,null,null,null,null,null,null,null,null,null,null,null,null,null,null,null,null,null,null,null,null,null,null,null,null,null,null,null,null,null,null,null,null,null,null,null,null,"　何度と台所の掃除をする。掃除機をかける。"]
[null,null,null,null,null,null,null,null,null,null,null,null,null,null,null,null,null,null,null,null,null,null,null,null,null,null,null,null,null,null,null,null,null,null,null,null,null,null,null,null,null,null,null,null,null,null,null,null,null,null,null,null,null,null,null,null,null,null,null,null,null,null,null,null,null,null,null,null,null,null,null,null,null,null,null,null,null,null,null,null,null,null,null,null,null,null,null,null,null,null,null,null,null,null,null,null,null,null,null,null,null,null,null,null,null,null,null,null,null,null,null,null,null,null,null,null,null,null,null,null,null,null,null,null,null,null,null,null,null,null,null,null,null,null,null,null,null,null,null,null,null,null,null,null,null,null,null,null,null,null,null,null,null,null,null,null,null,null,null,null,null,null,null,null,null,null,null,null,null,null,null,null,null,null,null,null,null,null,null,null,null,null,null,null,null,null,null,null,null,null,null,null,null,null,null,null,null,null,null,null,null,null,null,null,null,null,null,null,null,null,null,null,null,null,null,null,null,null,null,null,null,null,null,null,null,null,null,null,null,null,null,null,null,null,null,null,null,null,null,null,null,null,null,null,null,null,null,null,null,null,null,null,null,null,null,null,null,null,null,null,null,null,null,null,null,null,null,null,null,null,null,null,null,null,null,null,null,null,null,null,null,null,null,null,null,null,null,null,null,null,null,null,null,null,null,null,null,null,null,null,null,null,null,null,null,null,null,null,null,null,null,null,null,null,null,null,null,null,null,null,null,null,null,null,null,null,null,null,null,null,null,null,null,null,null,null,null,null,null,null,null,null,null,null,null,null,null,null,null,null,null,null,null,null,null,null,null,null,null,null,null,null,null,null,null,null,"　昼食作りイカゲソとネギのかき揚げ丼。"]
[null,null,null,null,null,null,null,null,null,null,null,null,null,null,null,null,null,null,null,null,null,null,null,null,null,null,null,null,null,null,null,null,null,null,null,null,null,null,null,null,null,null,null,null,null,null,null,null,null,null,null,null,null,null,null,null,null,null,null,null,null,null,null,null,null,null,null,null,null,null,null,null,null,null,null,null,null,null,null,null,null,null,null,null,null,null,null,null,null,null,null,null,null,null,null,null,null,null,null,null,null,null,null,null,null,null,null,null,null,null,null,null,null,null,null,null,null,null,null,null,null,null,null,null,null,null,null,null,null,null,null,null,null,null,null,null,null,null,null,null,null,null,null,null,null,null,null,null,null,null,null,null,null,null,null,null,null,null,null,null,null,null,null,null,null,null,null,null,null,null,null,null,null,null,null,null,null,null,null,null,null,null,null,null,null,null,null,null,null,null,null,null,null,null,null,null,null,null,null,null,null,null,null,null,null,null,null,null,null,null,null,null,null,null,null,null,null,null,null,null,null,null,null,null,null,null,null,null,null,null,null,null,null,null,null,null,null,null,null,null,null,null,null,null,null,null,null,null,null,null,null,null,null,null,null,null,null,null,null,null,null,null,null,null,null,null,null,null,null,null,null,null,null,null,null,null,null,null,null,null,null,null,null,null,null,null,null,null,null,null,null,null,null,null,null,null,null,null,null,null,null,null,null,null,null,null,null,null,null,null,null,null,null,null,null,null,null,null,null,null,null,null,null,null,null,null,null,null,null,null,null,null,null,null,null,null,null,null,null,null,null,null,null,null,null,null,null,null,null,null,null,null,null,null,null,null,null,null,null,null,null,null,null,null,null,null,"　午後定点観測の写真を撮る。雪景色の大晦日"]
[null,null,null,null,null,null,null,null,null,null,null,null,null,null,null,null,null,null,null,null,null,null,null,null,null,null,null,null,null,null,null,null,null,null,null,null,null,null,null,null,null,null,null,null,null,null,null,null,null,null,null,null,null,null,null,null,null,null,null,null,null,null,null,null,null,null,null,null,null,null,null,null,null,null,null,null,null,null,null,null,null,null,null,null,null,null,null,null,null,null,null,null,null,null,null,null,null,null,null,null,null,null,null,null,null,null,null,null,null,null,null,null,null,null,null,null,null,null,null,null,null,null,null,null,null,null,null,null,null,null,null,null,null,null,null,null,null,null,null,null,null,null,null,null,null,null,null,null,null,null,null,null,null,null,null,null,null,null,null,null,null,null,null,null,null,null,null,null,null,null,null,null,null,null,null,null,null,null,null,null,null,null,null,null,null,null,null,null,null,null,null,null,null,null,null,null,null,null,null,null,null,null,null,null,null,null,null,null,null,null,null,null,null,null,null,null,null,null,null,null,null,null,null,null,null,null,null,null,null,null,null,null,null,null,null,null,null,null,null,null,null,null,null,null,null,null,null,null,null,null,null,null,null,null,null,null,null,null,null,null,null,null,null,null,null,null,null,null,null,null,null,null,null,null,null,null,null,null,null,null,null,null,null,null,null,null,null,null,null,null,null,null,null,null,null,null,null,null,null,null,null,null,null,null,null,null,null,null,null,null,null,null,null,null,null,null,null,null,null,null,null,null,null,null,null,null,null,null,null,null,null,null,null,null,null,null,null,null,null,null,null,null,null,null,null,null,null,null,null,null,null,null,null,null,null,null,null,null,null,null,null,null,null,null,null,null,"となった。2時頃かっぱ亭にオードブルを取り"]
[null,null,null,null,null,null,null,null,null,null,null,null,null,null,null,null,null,null,null,null,null,null,null,null,null,null,null,null,null,null,null,null,null,null,null,null,null,null,null,null,null,null,null,null,null,null,null,null,null,null,null,null,null,null,null,null,null,null,null,null,null,null,null,null,null,null,null,null,null,null,null,null,null,null,null,null,null,null,null,null,null,null,null,null,null,null,null,null,null,null,null,null,null,null,null,null,null,null,null,null,null,null,null,null,null,null,null,null,null,null,null,null,null,null,null,null,null,null,null,null,null,null,null,null,null,null,null,null,null,null,null,null,null,null,null,null,null,null,null,null,null,null,null,null,null,null,null,null,null,null,null,null,null,null,null,null,null,null,null,null,null,null,null,null,null,null,null,null,null,null,null,null,null,null,null,null,null,null,null,null,null,null,null,null,null,null,null,null,null,null,null,null,null,null,null,null,null,null,null,null,null,null,null,null,null,null,null,null,null,null,null,null,null,null,null,null,null,null,null,null,null,null,null,null,null,null,null,null,null,null,null,null,null,null,null,null,null,null,null,null,null,null,null,null,null,null,null,null,null,null,null,null,null,null,null,null,null,null,null,null,null,null,null,null,null,null,null,null,null,null,null,null,null,null,null,null,null,null,null,null,null,null,null,null,null,null,null,null,null,null,null,null,null,null,null,null,null,null,null,null,null,null,null,null,null,null,null,null,null,null,null,null,null,null,null,null,null,null,null,null,null,null,null,null,null,null,null,null,null,null,null,null,null,null,null,null,null,null,null,null,null,null,null,null,null,null,null,null,null,null,null,null,null,null,null,null,null,null,null,null,null,null,null,null,null,null,"に行く。1万2000円と消費税。夕食は5時過ぎか"]
[null,null,null,null,null,null,null,null,null,null,null,null,null,null,null,null,null,null,null,null,null,null,null,null,null,null,null,null,null,null,null,null,null,null,null,null,null,null,null,null,null,null,null,null,null,null,null,null,null,null,null,null,null,null,null,null,null,null,null,null,null,null,null,null,null,null,null,null,null,null,null,null,null,null,null,null,null,null,null,null,null,null,null,null,null,null,null,null,null,null,null,null,null,null,null,null,null,null,null,null,null,null,null,null,null,null,null,null,null,null,null,null,null,null,null,null,null,null,null,null,null,null,null,null,null,null,null,null,null,null,null,null,null,null,null,null,null,null,null,null,null,null,null,null,null,null,null,null,null,null,null,null,null,null,null,null,null,null,null,null,null,null,null,null,null,null,null,null,null,null,null,null,null,null,null,null,null,null,null,null,null,null,null,null,null,null,null,null,null,null,null,null,null,null,null,null,null,null,null,null,null,null,null,null,null,null,null,null,null,null,null,null,null,null,null,null,null,null,null,null,null,null,null,null,null,null,null,null,null,null,null,null,null,null,null,null,null,null,null,null,null,null,null,null,null,null,null,null,null,null,null,null,null,null,null,null,null,null,null,null,null,null,null,null,null,null,null,null,null,null,null,null,null,null,null,null,null,null,null,null,null,null,null,null,null,null,null,null,null,null,null,null,null,null,null,null,null,null,null,null,null,null,null,null,null,null,null,null,null,null,null,null,null,null,null,null,null,null,null,null,null,null,null,null,null,null,null,null,null,null,null,null,null,null,null,null,null,null,null,null,null,null,null,null,null,null,null,null,null,null,null,null,null,null,null,null,null,null,null,null,null,null,null,null,null,"る","らオードブルを中心にして食べた。"]
[null,null,null,null,null,null,null,null,null,null,null,null,null,null,null,null,null,null,null,null,null,null,null,null,null,null,null,null,null,null,null,null,null,null,null,null,null,null,null,null,null,null,null,null,null,null,null,null,null,null,null,null,null,null,null,null,null,null,null,null,null,null,null,null,null,null,null,null,null,null,null,null,null,null,null,null,null,null,null,null,null,null,null,null,null,null,null,null,null,null,null,null,null,null,null,null,null,null,null,null,null,null,null,null,null,null,null,null,null,null,null,null,null,null,null,null,null,null,null,null,null,null,null,null,null,null,null,null,null,null,null,null,null,null,null,null,null,null,null,null,null,null,null,null,null,null,null,null,null,null,null,null,null,null,null,null,null,null,null,null,null,null,null,null,null,null,null,null,null,null,null,null,null,null,null,null,null,null,null,null,null,null,null,null,null,null,null,null,null,null,null,null,null,null,null,null,null,null,null,null,null,null,null,null,null,null,null,null,null,null,null,null,null,null,null,null,null,null,null,null,null,null,null,null,null,null,null,null,null,null,null,null,null,null,null,null,null,null,null,null,null,null,null,null,null,null,null,null,null,null,null,null,null,null,null,null,null,null,null,null,null,null,null,null,null,null,null,null,null,null,null,null,null,null,null,null,null,null,null,null,null,null,null,null,null,null,null,null,null,null,null,null,null,null,null,null,null,null,null,null,null,null,null,null,null,null,null,null,null,null,null,null,null,null,null,null,null,null,null,null,null,null,null,null,null,null,null,null,null,null,null,null,null,null,null,null,null,null,null,null,null,null,null,null,null,null,null,null,null,null,null,null,null,null,null,null,null,null,null,null,null,null,null,null,null,"お供えを供える。薪ストーブ用の蒸し器と着火","　紅白を見る。むかむかむかんきゃくの紅白で"]
[null,null,null,null,null,null,null,null,null,null,null,null,null,null,null,null,null,null,null,null,null,null,null,null,null,null,null,null,null,null,null,null,null,null,null,null,null,null,null,null,null,null,null,null,null,null,null,null,null,null,null,null,null,null,null,null,null,null,null,null,null,null,null,null,null,null,null,null,null,null,null,null,null,null,null,null,null,null,null,null,null,null,null,null,null,null,null,null,null,null,null,null,null,null,null,null,null,null,null,null,null,null,null,null,null,null,null,null,null,null,null,null,null,null,null,null,null,null,null,null,null,null,null,null,null,null,null,null,null,null,null,null,null,null,null,null,null,null,null,null,null,null,null,null,null,null,null,null,null,null,null,null,null,null,null,null,null,null,null,null,null,null,null,null,null,null,null,null,null,null,null,null,null,null,null,null,null,null,null,null,null,null,null,null,null,null,null,null,null,null,null,null,null,null,null,null,null,null,null,null,null,null,null,null,null,null,null,null,null,null,null,null,null,null,null,null,null,null,null,null,null,null,null,null,null,null,null,null,null,null,null,null,null,null,null,null,null,null,null,null,null,null,null,null,null,null,null,null,null,null,null,null,null,null,null,null,null,null,null,null,null,null,null,null,null,null,null,null,null,null,null,null,null,null,null,null,null,null,null,null,null,null,null,null,null,null,null,null,null,null,null,null,null,null,null,null,null,null,null,null,null,null,null,null,null,null,null,null,null,null,null,null,null,null,null,null,null,null,null,null,null,null,null,null,null,null,null,null,null,null,null,null,null,null,null,null,null,null,null,null,null,null,null,null,null,null,null,null,null,null,null,null,null,null,null,null,null,null,null,null,null,null,null,null,"　ストーブの薪を運び入れた。","　1回パソコンの修復を試みる。今のところう","あった。"]
[null,null,null,null,null,null,null,null,null,null,null,null,null,null,null,null,null,null,null,null,null,null,null,null,null,null,null,null,null,null,null,null,null,null,null,null,null,null,null,null,null,null,null,null,null,null,null,null,null,null,null,null,null,null,null,null,null,null,null,null,null,null,null,null,null,null,null,null,null,null,null,null,null,null,null,null,null,null,null,null,null,null,null,null,null,null,null,null,null,null,null,null,null,null,null,null,null,null,null,null,null,null,null,null,null,null,null,null,null,null,null,null,null,null,null,null,null,null,null,null,null,null,null,null,null,null,null,null,null,null,null,null,null,null,null,null,null,null,null,null,null,null,null,null,null,null,null,null,null,null,null,null,null,null,null,null,null,null,null,null,null,null,null,null,null,null,null,null,null,null,null,null,null,null,null,null,null,null,null,null,null,null,null,null,null,null,null,null,null,null,null,null,null,null,null,null,null,null,null,null,null,null,null,null,null,null,null,null,null,null,null,null,null,null,null,null,null,null,null,null,null,null,null,null,null,null,null,null,null,null,null,null,null,null,null,null,null,null,null,null,null,null,null,null,null,null,null,null,null,null,null,null,null,null,null,null,null,null,null,null,null,null,null,null,null,null,null,null,null,null,null,null,null,null,null,null,null,null,null,null,null,null,null,null,null,null,null,null,null,null,null,null,null,null,null,null,null,null,null,null,null,null,null,null,null,null,null,null,null,null,null,null,null,null,null,null,null,null,null,null,null,null,null,null,null,null,null,null,null,null,null,null,null,null,null,null,null,null,null,null,null,null,null,null,null,null,null,null,null,null,null,null,null,null,null,null,null,null,null,null,null,null,null,null,null,null,"　紅白は結局最後まで見る。"]
[]
[]
[]
[null,null,null,null,null,null,null,null,null,null,null,null,null,null,null,null,null,null,null,"雨Pほぼ1日屋内で1日屋内で過ごす",null,null,null,null,null,null,null,null,null,null,null,null,null,null,null,null,null,null,null,null,null,null,null,null,null,null,null,null,null,null,null,null,null,null,null,null,null,null,null,null,null,null,null,null,null,null,null,null,null,null,null,null,null,null,null,null,null,null,null,null,null,null,null,null,null,null,null,null,null,null,null,null,null,null,null,null,null,null,null,null,null,null,null,null,null,null,null,null,null,null,null,null,null,null,null,null,null,"曇り時々晴れ","曇り時々雨","雨一時曇り","曇り時々雨","　スマホのコース切り替えの手続きを行ったが、","雨時々曇り","晴れ、ほぼ1時一日中良い天気","晴れのち曇り","雨夕方から晴れ","晴れ暑いくらいの良い天気","　敬一郎と菜穂子から喜寿の祝いが届く。お祝","　固定のために太めの針金で縛っていたら硬す","曇り時々晴れ","晴れ時々曇り","　歯医者に行く。新しい葉ができる予定である。","曇りのち小雨","　昼食作り、朝の味噌汁が残っていたのと鯖の","曇り","曇り時々雨、中国地方梅雨入り","曇りのち雨、","曇り時々雨","曇り時々小雨","曇り時々雨","　コロナワクチン接種の日。8時過ぎに家を出","曇りのち時々晴れ。","曇り","曇り時々晴れ","ほぼ一日中雨","晴れ","　スイスで買ったオメガの腕時計の資料を探し",null,null,"　宇津田の蜂の採蜜。7時に宇津田出発で現地","　山水の出が悪くなったので出しに行こうとし",null,"　スマホのOCNとの契約内容が、これまで110m","晴れ","曇りのち夕方から雨","雨のち曇り","晴れ","晴れ、良い天気","晴れ","はれかんも少し暑くなってきた","　2の畑の草刈りをした。バシバシにて、1時間","曇りのち夕方から1時雨","　肩がやはり痛い。1回パソコンD586の調整を","雨時々曇り","曇り時々雨","曇り","曇り","朝雨のち曇り","　一の坂の草集めをする。1時間、完了。","　Dellのノートパソコンの回復データを取る。","　大傾斜の草刈りをした、バシバシにて2時間。","晴れ","晴れ","晴れP図書館と合銀に行く。","晴れ","薄曇り館前知事雨","曇り一時雨","曇り","曇り時々晴れ","曇り","　帰り道、染と茶で食事をして帰る。16時頃帰","曇り時々晴れ、蒸し暑い","曇りのち晴れ","曇り曇り、蒸し暑い","曇り夕方雨、静岡で土石流災害","曇り一時雨","ほぼ1日雨","曇り一時止め","雨、松江方面は大雨","ほぼ1日飴、広島方面は雨で被害が出る","雨","雨ニューラインほぼ1日屋内で1日屋内で過ごす","雨Pほぼ1日屋内で1日屋内で過ごす。","雨、松江方面は大雨","雨Pほぼ1日屋内で1日屋内で過ごす。","雨Pほぼ1日屋内で1日屋内で過ごす。","雨Pほぼ1日屋内で1日屋内で過ごす。","雨Pほぼ1日屋内で1日屋内で過ごす。","雨Pほぼ1日屋内で1日屋内で過ごす。","雨Pほぼ1日屋内で1日屋内で過ごす。",null,null,"雨Pほぼ1日屋内で1日屋内で過ごす。"]
[null,null,null,null,null,null,null,null,null,null,null,null,null,null,null,null,null,null,null,null,null,null,null,null,null,null,null,null,null,null,null,null,null,null,null,null,null,null,null,null,null,null,null,null,null,null,null,null,null,null,null,null,null,null,null,null,null,null,null,null,null,null,null,null,null,null,null,null,null,null,null,null,null,null,null,null,null,null,null,null,null,null,null,null,null,null,null,null,null,null,null,null,null,null,null,null,null,null,null,null,null,null,null,null,null,null,null,null,null,null,null,null,null,null,null,null,null,null,null,null,null,null,null,null,null,null,null,null,null,null,null,null,null,null,null,null,null,null,null,null,null,null,null,null,null,null,null,null,null,null,null,null,null,null,null,null,null,null,null,null,null,null,null,null,null,null,null,null,null,null,null,null,null,null,null,null,null,null,null,null,null,null,null,null,null,null,null,null,null,null,null,null,null,"　歯医者へ行く。教で完了かと思ったがまたも"]
[null,null,null,null,null,null,null,null,null,null,null,null,null,null,null,null,null,null,null,null,null,null,null,null,null,null,null,null,null,null,null,null,null,null,null,null,null,null,null,null,null,null,null,null,null,null,null,null,null,null,null,null,null,null,null,null,null,null,null,null,null,null,null,null,null,null,null,null,null,null,null,null,null,null,null,null,null,null,null,null,null,null,null,null,null,null,null,null,null,null,null,null,null,null,null,null,null,null,null,null,null,null,null,null,null,null,null,null,null,null,null,null,null,null,null,null,null,null,null,null,null,null,null,null,null,null,null,null,null,null,null,null,null,null,null,null,null,null,null,null,null,null,null,null,null,null,null,null,null,null,null,null,null,null,null,null,null,null,null,null,null,null,null,null,null,null,null,null,null,null,null,null,null,null,null,null,null,null,null,null,null,null,null,null,null,null,null,null,null,null,null,null,null,"や狩場となった。"]
[null,null,null,null,null,null,null,null,null,null,null,null,null,null,null,null,null,null,null,null,null,null,null,null,null,null,null,null,null,null,null,null,null,null,null,null,null,null,null,null,null,null,null,null,null,null,null,null,null,null,null,null,null,null,null,null,null,null,null,null,null,null,null,null,null,null,null,null,null,null,null,null,null,null,null,null,null,null,null,null,null,null,null,null,null,null,null,null,null,null,null,null,null,null,null,null,null,null,null,null,null,null,null,null,null,null,null,null,null,null,null,null,null,null,null,null,null,null,null,null,null,null,null,null,null,null,null,null,null,null,null,null,null,null,null,null,null,null,null,null,null,null,null,null,null,null,null,null,null,null,null,null,null,null,null,null,null,null,null,null,null,null,null,null,null,null,null,null,null,null,null,null,null,null,null,null,null,null,null,null,null,null,null,null,null,null,null,null,null,null,null,null,null,"　その後サロン田家へ行く。ついでに郵便局へ"]
[null,null,null,null,null,null,null,null,null,null,null,null,null,null,null,null,null,null,null,null,null,null,null,null,null,null,null,null,null,null,null,null,null,null,null,null,null,null,null,null,null,null,null,null,null,null,null,null,null,null,null,null,null,null,null,null,null,null,null,null,null,null,null,null,null,null,null,null,null,null,null,null,null,null,null,null,null,null,null,null,null,null,null,null,null,null,null,null,null,null,null,null,null,null,null,null,null,null,null,null,null,null,null,null,null,null,null,null,null,null,null,null,null,null,null,null,null,null,null,null,null,null,null,null,null,null,null,null,null,null,null,null,null,null,null,null,null,null,null,null,null,null,null,null,null,null,null,null,null,null,null,null,null,null,null,null,null,null,null,null,null,null,null,null,null,null,null,null,null,null,null,null,null,null,null,null,null,null,null,null,null,null,null,null,null,null,null,null,null,null,null,null,null,"行き老人会の会計処理。"]
[null,null,null,null,null,null,null,null,null,null,null,null,null,null,null,null,null,null,null,null,null,null,null,null,null,null,null,null,null,null,null,null,null,null,null,null,null,null,null,null,null,null,null,null,null,null,null,null,null,null,null,null,null,null,null,null,null,null,null,null,null,null,null,null,null,null,null,null,null,null,null,null,null,null,null,null,null,null,null,null,null,null,null,null,null,null,null,null,null,null,null,null,null,null,null,null,null,null,null,null,null,null,null,null,null,null,null,null,null,null,null,null,null,null,null,null,null,null,null,null,null,null,null,null,null,null,null,null,null,null,null,null,null,null,null,null,null,null,null,null,null,null,null,null,null,null,null,null,null,null,null,null,null,null,null,null,null,null,null,null,null,null,null,null,null,null,null,null,null,null,null,null,null,null,null,null,null,null,null,null,null,null,null,null,null,null,null,null,null,null,null,null,null,"　夕食作り、鶏肉でお好み焼き。"]
[null,null,null,null,null,null,null,null,null,null,null,null,null,null,null,null,null,null,null,null,null,null,null,null,null,null,null,null,null,null,null,null,null,null,null,null,null,null,null,null,null,null,null,null,null,null,null,null,null,null,null,null,null,null,null,null,null,null,null,null,null,null,null,null,null,null,null,null,null,null,null,null,null,null,null,null,null,null,null,null,null,null,null,null,null,null,null,null,null,null,null,null,null,null,null,null,null,null,null,null,null,null,null,null,null,null,null,null,null,null,null,null,null,null,null,null,null,null,null,null,null,null,null,null,null,null,null,null,null,null,null,null,null,null,null,null,null,null,null,null,null,null,null,null,null,null,null,null,null,null,null,null,null,null,null,null,null,null,null,null,null,null,null,null,null,null,null,null,null,null,null,null,null,null,null,null,null,null,null,null,null,null,null,null,null,null,null,null,null,null,null,null,null,"　けや木の枝おろし作業のため、森林の作業者"]
[null,null,null,null,null,null,null,null,null,null,null,null,null,null,null,null,null,null,null,null,null,null,null,null,null,null,null,null,null,null,null,null,null,null,null,null,null,null,null,null,null,null,null,null,null,null,null,null,null,null,null,null,null,null,null,null,null,null,null,null,null,null,null,null,null,null,null,null,null,null,null,null,null,null,null,null,null,null,null,null,null,null,null,null,null,null,null,null,null,null,null,null,null,null,null,null,null,null,null,null,null,null,null,null,null,null,null,null,null,null,null,null,null,null,null,null,null,null,null,null,null,null,null,null,null,null,null,null,null,null,null,null,null,null,null,null,null,null,null,null,null,null,null,null,null,null,null,null,null,null,null,null,null,null,null,null,null,null,null,null,null,null,null,null,null,null,null,null,null,null,null,null,null,null,null,null,null,null,null,null,null,null,null,null,null,null,null,null,null,null,null,null,null,"が下見に来た。"]
[null,null,null,null,null,null,null,null,null,null,null,null,null,null,null,null,null,null,null,null,null,null,null,null,null,null,null,null,null,null,null,null,null,null,null,null,null,null,null,null,null,null,null,null,null,null,null,null,null,null,null,null,null,null,null,null,null,null,null,null,null,null,null,null,null,null,null,null,null,null,null,null,null,null,null,null,null,null,null,null,null,null,null,null,null,null,null,null,null,null,null,null,null,null,null,null,null,null,null,null,null,null,null,null,null,null,null,null,null,null,null,null,null,null,null,null,null,null,null,null,null,null,null,null,null,null,null,null,null,null,null,null,null,null,null,null,null,null,null,null,null,null,null,null,null,null,null,null,null,null,null,null,null,null,null,null,null,null,null,null,null,null,null,null,null,null,null,null,null,null,null,null,null,null,null,null,null,null,null,null,null,null,null,null,null,null,null,null,null,null,null,null,null,"　雨が強いので安全を見て二階で寝た。"]

{"sheet":"データ","index":2,"n_rows":132,"n_cols":20,"rows_kept":132,"cut":false,"hidden":false,"merged":[[0,13,0,14],[1,7,1,8],[1,10,1,11],[0,0,0,1],[0,3,0,4],[0,7,0,8],[0,10,0,11]]}
["置換表",null,null,"年度開始行",null,null,null,"今日",null,null,"希望日",null,null,"カレンダー作成年",null,null,null,null,null,"雨、松江方面は大雨P歯医者へ行く。教で完了かと思ったがまたもや狩場となった。Pその後サロン田家へ行く。ついでに郵便局へ行き老人会の会計処理。P夕食作り、鶏肉でお好み焼き。Pけや木の枝おろし作業のため、森林の作業者が下見に来た。P雨が強いので安全を見て二階で寝た。"]
["検索文字列","置換文字列",null,"年度","開始行",null,null,{"$f":"TODAY()","v":"2021-07-13"},null,null,"2021-04-01",null,null,"年",2021]
["リアド","。",null,2018,8,null,null,"年",{"$f":"YEAR(H2)","v":2021},null,"年",{"$f":"YEAR(K2)","v":2021},null,"開始行",{"$f":"VLOOKUP(O2,D3:E25,2,FALSE)","v":56},null,"関数が入っています。"]
["ピリオド","。",null,2019,23,null,null,"月",{"$f":"MONTH(H2)","v":7},null,"月",{"$f":"MONTH(K2)","v":4}]
["カンマ","、",null,2020,39,null,null,"日",{"$f":"DAY(H2)","v":13},null,"日",{"$f":"DAY(K2)","v":1},null,null,"カレンダー作成年を記入する。"]
["がんま","、",null,2021,56]
["冠馬","、",null,2022]
["がんも","、",null,2023,null,null,null,"今日の行",{"$f":"VLOOKUP(I3,$D$3:$E$25,2,FALSE)","v":56},null,"希望日の行",{"$f":"VLOOKUP(L3,$D$3:$E$25,2,FALSE)","v":56}]
["ビリヤード","。",null,2024]
["period","。",null,2025]
["ビリオド","。",null,2026]
["レイヤード","。",null,2027]
["プレイヤード","。",null,2028,null,null,"新しいカレンダーを作成するとき、カレンダーをどの行に作成するかを指定する。"]
["あんま","、",null,2029,null,null,"カレンダーの位置を変更した場合は、それにあわせて、この開始行の値も変更してください。"]
["かんま","、",null,2030]
["いい宿","。",null,2031]
["ガンマ","、",null,2032]
["ニューライン","P",null,2033]
["NewLine","P",null,2034]
["newline","P",null,2035]
["newraining","P",null,2036]
["newrain","P",null,2037]
["newright","P",null,2038]
["由来","P",null,2039]
["入来","P",null,2040]
["ニューレイン","P"]
["改行のP","P"]
["ニューライ","P"]
["三浦医院","P",null,null,null,null,"上から空白セルを作らないように、詰めて入力する。"]
["乳LINE","P"]
["大輔"]
["リオ","梨央"]
["みかん","未完"]
["鷹見","高見"]
["けいいちろう"]
["大内","邑智"]
["委嘱","移植"]
["たつ岩","龍岩"]
["産経","参詣"]
["TAYA","田家"]
["高知病院","邑智病院"]
["エム","M"]
["兄","K"]
["就実","終日"]
["道田"]
["下の端"]
["あれ","晴れ"]
["圭一郎","敬一郎"]
["臓器","雑木"]
["買うにて","カウにて"]
["の芝","野芝"]
["けやき台","欅台"]
["右の端","二の畑"]
["2の端","二の畑"]
["道だ","三千田"]
["うずら"]
["うずた"]
["8用","蜂用"]
["連作","電柵"]
["5号","午後"]
["赤の","墓の"]
["星橋","バシバシ"]
["市サッカー","一の坂"]
["2の旗","二の畑"]
["雑誌の","雑地の"]
["インパラ","因原"]
["八上","矢上"]
[55,"午後"]
["湯の畑","二の畑"]
["狂想曲","協奏曲"]
["ばしばし","バシバシ"]
["アメ","雨"]
["手術","終日"]
["山川","山側"]
["マルバ","丸刃"]
["横には","横庭"]
["いのはた","二の畑"]
["市の坂","一の坂"]
["パレ","晴れ"]
["ハレ","晴れ"]
["インボラ","因原"]
["目の端","二の畑"]
["八木","ヤギ"]
["かっこ開く","（"]
["かっこ閉じる","）"]
["括弧開く","（"]
["括弧閉じる","）"]
["5号","午後"]
["放置病院","邑智病院"]
["草を買って","草を刈って",null,null,"かぎかっこ開く","「",null,"かっこ開く","（"]
["市坂","一の坂",null,null,"鍵括弧開く","「",null,"かっこ閉じる","）"]
["火傷","個所",null,null,"鍵括弧閉じる","」",null,"括弧開く","（"]
["上記下","雑木下",null,null,"かぎかっこ閉じる","」",null,"括弧閉じる","）"]
["いちのさか","一の坂",null,null,"ビックリマーク","！",null,"かぎかっこ開く","「"]
["雑誌の草","雑地の草刈",null,null,"クエスチョンマーク","？",null,"鍵括弧開く","「"]
["草や木","草焼き",null,null,"ダブルクォーテーション開始","“",null,"鍵括弧閉じる","」"]
["8の","蜂の",null,null,"ダブルクォーテーション開始","”",null,"かぎかっこ閉じる","」"]
["よしえ台","義衛台",null,null,"。まるけし",null,null,"ビックリマーク","！"]
["にの端","二の畑",null,null,"。マルケシ",null,null,"クエスチョンマーク","？"]
["HARE","晴れ",null,null,"。まる消し",null,null,"ダブルクォーテーション開始","“"]
["天気した","転記した",null,null,"、10。消し",null,null,"ダブルクォーテーション開始","”"]
["いんばら","因原",null,null,"。丸天","、"]
["雪が恋","雪囲い",null,null,"、天まる","。"]
["写経","社協"]
["ナレド","なれど"]
["社長","社協"]
["慶一","敬一"]
["ハンマー","、"]
["直子"]
["冠馬","、"]
["鹿沼","、"]
["おうち病院","邑智病院"]
["いり小戸","。"]
["8箱","蜂箱"]
["吉江台","義衛台"]
["言えよ後継者","家横傾斜"]
["矢板","焼いた"]
["inバラ","因原"]
["里には","里庭"]
["に豪腕","二合庵"]
["サンマ","、"]
["かんな","、"]
["なおこ"]
[55,"午後"]
["かぎかっこ開く","「"]
["鍵括弧開く","「"]
["鍵括弧閉じる","」"]
["かぎかっこ閉じる","」"]
["ビックリマーク","！"]
["クエスチョンマーク","？"]
["ダブルクォーテーション開始","“"]
["ダブルクォーテーション開始","”"]

{"sheet":"印刷","index":3,"n_rows":0,"n_cols":0,"rows_kept":0,"cut":false,"hidden":false,"merged":[]}

{"sheet":"カレンダー","index":4,"n_rows":15,"n_cols":366,"rows_kept":15,"cut":false,"hidden":false,"merged":[[0,0,12,0]]}
["2000年",{"$f":"VALUE(LEFT(A1,4)&\"/1/1\")","v":"2000-01-01"},{"$f":"B1+1","v":"2000-01-02"},"2000-01-03","2000-01-04","2000-01-05","2000-01-06","2000-01-07","2000-01-08","2000-01-09","2000-01-10","2000-01-11","2000-01-12","2000-01-13","2000-01-14","2000-01-15","2000-01-16","2000-01-17","2000-01-18","2000-01-19","2000-01-20","2000-01-21",{"$f":"V1+1","v":"2000-01-22"},"2000-01-23","2000-01-24","2000-01-25","2000-01-26","2000-01-27","2000-01-28","2000-01-29","2000-01-30","2000-01-31","2000-02-01","2000-02-02","2000-02-03","2000-02-04","2000-02-05","2000-02-06","2000-02-07","2000-02-08","2000-02-09","2000-02-10","2000-02-11","2000-02-12","2000-02-13","2000-02-14","2000-02-15","2000-02-16","2000-02-17","2000-02-18","2000-02-19","2000-02-20","2000-02-21","2000-02-22","2000-02-23","2000-02-24","2000-02-25","2000-02-26","2000-02-27","2000-02-28","2000-02-29","2000-03-01","2000-03-02","2000-03-03","2000-03-04","2000-03-05","2000-03-06","2000-03-07","2000-03-08","2000-03-09","2000-03-10","2000-03-11","2000-03-12","2000-03-13","2000-03-14","2000-03-15","2000-03-16","2000-03-17","2000-03-18","2000-03-19","2000-03-20","2000-03-21","2000-03-22","2000-03-23","2000-03-24","2000-03-25",{"$f":"CH1+1","v":"2000-03-26"},"2000-03-27","2000-03-28","2000-03-29","2000-03-30","2000-03-31","2000-04-01","2000-04-02","2000-04-03","2000-04-04","2000-04-05","2000-04-06","2000-04-07","2000-04-08","2000-04-09","2000-04-10","2000-04-11","2000-04-12","2000-04-13","2000-04-14","2000-04-15","2000-04-16","2000-04-17","2000-04-18","2000-04-19","2000-04-20","2000-04-21","2000-04-22","2000-04-23","2000-04-24","2000-04-25","2000-04-26","2000-04-27","2000-04-28","2000-04-29","2000-04-30","2000-05-01","2000-05-02","2000-05-03","2000-05-04","2000-05-05","2000-05-06","2000-05-07","2000-05-08","2000-05-09","2000-05-10","2000-05-11","2000-05-12","2000-05-13","2000-05-14","2000-05-15","2000-05-16","2000-05-17","2000-05-18","2000-05-19","2000-05-20","2000-05-21","2000-05-22","2000-05-23","2000-05-24","2000-05-25","2000-05-26","2000-05-27","2000-05-28",{"$f":"ET1+1","v":"2000-05-29"},"2000-05-30","2000-05-31","2000-06-01","2000-06-02","2000-06-03","2000-06-04","2000-06-05","2000-06-06","2000-06-07","2000-06-08","2000-06-09","2000-06-10","2000-06-11","2000-06-12","2000-06-13","2000-06-14","2000-06-15","2000-06-16","2000-06-17","2000-06-18","2000-06-19","2000-06-20","2000-06-21","2000-06-22","2000-06-23","2000-06-24","2000-06-25","2000-06-26","2000-06-27","2000-06-28","2000-06-29","2000-06-30","2000-07-01","2000-07-02","2000-07-03","2000-07-04","2000-07-05","2000-07-06","2000-07-07","2000-07-08","2000-07-09","2000-07-10","2000-07-11","2000-07-12","2000-07-13","2000-07-14","2000-07-15","2000-07-16","2000-07-17","2000-07-18","2000-07-19","2000-07-20","2000-07-21","2000-07-22","2000-07-23","2000-07-24","2000-07-25","2000-07-26","2000-07-27","2000-07-28","2000-07-29","2000-07-30","2000-07-31",{"$f":"HF1+1","v":"2000-08-01"},"2000-08-02","2000-08-03","2000-08-04","2000-08-05","2000-08-06","2000-08-07","2000-08-08","2000-08-09","2000-08-10","2000-08-11","2000-08-12","2000-08-13","2000-08-14","2000-08-15","2000-08-16","2000-08-17","2000-08-18","2000-08-19","2000-08-20","2000-08-21","2000-08-22","2000-08-23","2000-08-24","2000-08-25","2000-08-26","2000-08-27","2000-08-28","2000-08-29","2000-08-30","2000-08-31","2000-09-01","2000-09-02","2000-09-03","2000-09-04","2000-09-05","2000-09-06","2000-09-07","2000-09-08","2000-09-09","2000-09-10","2000-09-11","2000-09-12","2000-09-13","2000-09-14","2000-09-15","2000-09-16","2000-09-17","2000-09-18","2000-09-19","2000-09-20","2000-09-21","2000-09-22","2000-09-23","2000-09-24","2000-09-25","2000-09-26","2000-09-27","2000-09-28","2000-09-29","2000-09-30","2000-10-01","2000-10-02","2000-10-03",{"$f":"JR1+1","v":"2000-10-04"},"2000-10-05","2000-10-06","2000-10-07","2000-10-08","2000-10-09","2000-10-10","2000-10-11","2000-10-12","2000-10-13","2000-10-14","2000-10-15","2000-10-16","2000-10-17","2000-10-18","2000-10-19","2000-10-20","2000-10-21","2000-10-22","2000-10-23","2000-10-24","2000-10-25","2000-10-26","2000-10-27","2000-10-28","2000-10-29","2000-10-30","2000-10-31","2000-11-01","2000-11-02","2000-11-03","2000-11-04","2000-11-05","2000-11-06","2000-11-07","2000-11-08","2000-11-09","2000-11-10","2000-11-11","2000-11-12","2000-11-13","2000-11-14","2000-11-15","2000-11-16","2000-11-17","2000-11-18","2000-11-19","2000-11-20","2000-11-21","2000-11-22","2000-11-23","2000-11-24","2000-11-25","2000-11-26","2000-11-27","2000-11-28","2000-11-29","2000-11-30","2000-12-01","2000-12-02","2000-12-03","2000-12-04","2000-12-05","2000-12-06",{"$f":"MD1+1","v":"2000-12-07"},"2000-12-08","2000-12-09","2000-12-10","2000-12-11","2000-12-12","2000-12-13","2000-12-14","2000-12-15","2000-12-16","2000-12-17","2000-12-18","2000-12-19","2000-12-20","2000-12-21","2000-12-22","2000-12-23","2000-12-24","2000-12-25","2000-12-26","2000-12-27","2000-12-28","2000-12-29","2000-12-30"]
[null,{"$f":"TEXT(B1,\"aaaa\")","v":"土曜日"},"日曜日","月曜日","火曜日","水曜日","木曜日","金曜日","土曜日","日曜日","月曜日","火曜日","水曜日","木曜日","金曜日","土曜日","日曜日","月曜日","火曜日","水曜日",{"$f":"TEXT(U1,\"aaaa\")","v":"木曜日"},"金曜日","土曜日","日曜日",{"$f":"TEXT(Y1,\"aaaa\")","v":"月曜日"},"火曜日","水曜日","木曜日","金曜日","土曜日","日曜日","月曜日","火曜日","水曜日","木曜日","金曜日","土曜日","日曜日","月曜日","火曜日","水曜日","木曜日","金曜日","土曜日","日曜日","月曜日","火曜日","水曜日","木曜日","金曜日","土曜日","日曜日","月曜日","火曜日","水曜日","木曜日","金曜日","土曜日","日曜日","月曜日","火曜日","水曜日","木曜日","金曜日","土曜日","日曜日","月曜日","火曜日","水曜日","木曜日","金曜日","土曜日","日曜日","月曜日","火曜日","水曜日","木曜日","金曜日","土曜日","日曜日","月曜日","火曜日","水曜日","木曜日","金曜日","土曜日","日曜日","月曜日",{"$f":"TEXT(CK1,\"aaaa\")","v":"火曜日"},"水曜日","木曜日","金曜日","土曜日","日曜日","月曜日","火曜日","水曜日","木曜日","金曜日","土曜日","日曜日","月曜日","火曜日","水曜日","木曜日","金曜日","土曜日","日曜日","月曜日","火曜日","水曜日","木曜日","金曜日","土曜日","日曜日","月曜日","火曜日","水曜日","木曜日","金曜日","土曜日","日曜日","月曜日","火曜日","水曜日","木曜日","金曜日","土曜日","日曜日","月曜日","火曜日","水曜日","木曜日","金曜日","土曜日","日曜日","月曜日","火曜日","水曜日","木曜日","金曜日","土曜日","日曜日","月曜日","火曜日","水曜日","木曜日","金曜日","土曜日","日曜日","月曜日","火曜日",{"$f":"TEXT(EW1,\"aaaa\")","v":"水曜日"},"木曜日","金曜日","土曜日","日曜日","月曜日","火曜日","水曜日","木曜日","金曜日","土曜日","日曜日","月曜日","火曜日","水曜日","木曜日","金曜日","土曜日","日曜日","月曜日","火曜日","水曜日","木曜日","金曜日","土曜日","日曜日","月曜日","火曜日","水曜日","木曜日","金曜日","土曜日","日曜日","月曜日","火曜日","水曜日","木曜日","金曜日","土曜日","日曜日","月曜日","火曜日","水曜日","木曜日","金曜日","土曜日","日曜日","月曜日","火曜日","水曜日","木曜日","金曜日","土曜日","日曜日","月曜日","火曜日","水曜日","木曜日","金曜日","土曜日","日曜日","月曜日","火曜日","水曜日",{"$f":"TEXT(HI1,\"aaaa\")","v":"木曜日"},"金曜日","土曜日","日曜日","月曜日","火曜日","水曜日","木曜日","金曜日","土曜日","日曜日","月曜日","火曜日","水曜日","木曜日","金曜日","土曜日","日曜日","月曜日","火曜日","水曜日","木曜日","金曜日","土曜日","日曜日","月曜日","火曜日","水曜日","木曜日","金曜日","土曜日","日曜日","月曜日","火曜日","水曜日","木曜日","金曜日","土曜日","日曜日","月曜日","火曜日","水曜日","木曜日","金曜日","土曜日","日曜日","月曜日","火曜日","水曜日","木曜日","金曜日","土曜日","日曜日","月曜日","火曜日","水曜日","木曜日","金曜日","土曜日","日曜日",null,{"$f":"TEXT(JR1,\"aaaa\")","v":"火曜日"},"水曜日","木曜日","金曜日","土曜日","日曜日","月曜日","火曜日","水曜日","木曜日","金曜日","土曜日","日曜日","月曜日","火曜日","水曜日","木曜日","金曜日","土曜日","日曜日","月曜日","火曜日","水曜日","木曜日","金曜日","土曜日","日曜日","月曜日","火曜日","水曜日","木曜日","金曜日",{"$f":"TEXT(KX1,\"aaaa\")","v":"土曜日"},"日曜日","月曜日","火曜日","水曜日","木曜日","金曜日","土曜日","日曜日","月曜日","火曜日","水曜日","木曜日","金曜日","土曜日","日曜日","月曜日","火曜日","水曜日","木曜日","金曜日","土曜日","日曜日","月曜日","火曜日","水曜日","木曜日","金曜日","土曜日","日曜日","月曜日","火曜日",{"$f":"TEXT(MD1,\"aaaa\")","v":"水曜日"},"木曜日","金曜日","土曜日","日曜日","月曜日","火曜日","水曜日","木曜日","金曜日","土曜日","日曜日","月曜日","火曜日","水曜日","木曜日","金曜日","土曜日","日曜日","月曜日","火曜日","水曜日","木曜日","金曜日","土曜日"]
[]
[]
[]
[]
[]
[]
[]
[]
[]
[]
[]
[]
["このカレンダーは新年度作成用のモデルです。消さないでください。"]

{"sheet":"一般音声入力","index":5,"n_rows":14,"n_cols":3,"rows_kept":14,"cut":false,"hidden":false,"merged":[]}
[]
[null,null,"Googleドキュメントを用いて音声入力されたものを、当該セル（A7)内に貼り付け"]
[null,null,"編集することができます。"]
[]
[]
[]
[]
[]
[]
[]
[]
["・改行記号を挿入すると、その位置でセル分けします。"]
["・セル内改行は、Alt+Enterで行います。"]
["・ここで改行せず、最終貼り付け先で改行するのが良い場合も多い。"]